Workbook

Sheet Base
B2: Arbeitsdiagramm für Manson-Heissluft-Motor ( berücksichtigt Toträumen in der Maschine)
B3: Eingabe-Grösse / Input parameter | C3: Symbol | D3: input | N3: B
B4: Durchmesser Arbeitskolben /-stange (kalte Seite) | C4: D1 [mm] | D4: 7.9
B5: =Value!A6 -> Durchmesser desVerdrägerkolbens (warme Seite) | C5: D2 [mm] | D5: 17.6
B6: Zylinderdurchmesser | C6: DC [mm] ≥ D2 | D6: 18.2
B7: Durchmesser der Steuerleitung | C7: DV [mm] < D1 | D7: 2
B8: =Value!A9 -> Länge des Zylinders | C8: LC [mm] ≥ LP+2*r | D8: 43
B9: Länge des Verdrängerkolbens | C9: LP [mm] | D9: 23
B10: Länge der Steuerleitung | C10: LV [mm] | D10: 22.5
B11: Kurbelradius | C11: r [mm] | D11: 10
B12: Pleuelstangenlänge | C12: l [mm] > 2*r | D12: 43
B14: Temperatur der Umgebung | C14: Tu [°C] | D14: 20
B15: Temperaturänderung der kalten Seite im Betrieb | C15: DTu [°C] | D15: 60
B16: Temperatur Arbeitsseite (kalte Seite) | C16: T1=Tmin [°C] | D16: =D14+D15 -> 80
B17: Temperatur Verdängerseite (warme Seite) | C17: T2=Tmax >T1 [°C] | D17: 300
B19: atmosphärischer Druck bei offenen Steueröffnungen | C19: patm [105Pa=bar] | D19: 1.013
B20: Drehzahl (geschätzt / Annahme / Erfahrungswert) | C20: n [1/min] | D20: 500
B22: Dichte der Luft | C22: r [kg/m³] | D22: 1.293
B23: allgemeine Gaskonstante | C23: Rs [J/mol/°K] | D23: 8.314
B24: spezielle Gaskonstante | C24: Rs [m²/s²/°K] | D24: 287
B25: spez. Wärmekapazität (V=const) | C25: Cv [ J/kg/K] ] | D25: 740
B26: spez. Wärmekapazität (p=const) | C26: Cp [J/kg/°K ] | D26: 1025
B27: molare Masse der Luft | C27: Mmol [kg/mol] | D27: 0.02896
B29: Ausgangswinkel für Umlauf | C29: j0 [-°] | D29: 0
B30: Schrittweite | C30: Dj [-°] ≥ 1 | D30: 1
B31: Laufindex für Kurbelwinkel | C31: i [-] | D31: 0
B32: Kurbelwinkel aktuell | C32: j [-°] | D32: =D31*D30 -> 0
B34: Ergebnisse / results
B35: Wirkungsgrad des Motors | C35: h [-] | D35: =Calc!L60 -> 0.04356092472
B36: zugeführte Energie pro Umdrehung (Zylinder) | C36: Q [kg*m²/s²=Nm] | D36: =Calc!J57 -> 0.4992165571
B37: Arbeit pro Umdrehung (Zylinder) | C37: W [kg*m²/s²=Nm] | D37: =Calc!L57 -> 0.02174633486
B38: Motorleistung (Zylinder) | C38: Pe [W ] | D38: =Calc!J60 -> 0.1812194572
B39: Wellenleistung (Kurbelwelle) / Wirkungsgrad an der Welle | C39: PS [W] | D39: =Calc!V34 -> 0.180201597 | E39: =D39/D38*E35*100 -> 0
B40: mittleres Wellenmoment | C40: Mt [Nm] | D40: =Calc!J61 -> Mt [kgm²/s²]
B41: Fläche des Arbeitskolbens | C41: A3 [m²] = p/4*D12 | D41: =Value!E33 -> 4.901669938e-05
B42: maximaler Kolbenweg (Hub) | C42: smax [m] | D42: =2*D11/1000 -> 0.02
B43: maximaler Druck für die Umrechnung der dim.-losen Diagrammwerte auf absolute Druckwerte | C43: pmax[105Pa=bar] | D43: =Calc!I19/10^5 -> 1.260987665 | E43: for Diagram 1
B44: mittlerer Druck 0° ≤ j ≤ 180° | C44: pm1 [105Pa=bar] | D44: =Calc!$I$41 -> 1.12795759
B45: athmosphärischer Druck | C45: patm [105Pa=bar] | D45: =D19 -> 1.013
B46: mittlerer Druck 180° ≤ j ≤ 360° | C46: pm2 [105Pa=bar] | D46: =Calc!$I$45 -> 0.9061318132
B47: mittlerer Druck 0° ≤ j ≤ 360° | C47: pm [105Pa=bar] | D47: =(D44+D46)/2 -> 1.017044702 | E47: for Diagram 54
B48: Vorschlag zur Optimierung des Wirkungsgrades aus der Berechnung ohne Toträume / 1. Schritt für Näherung
B49: Arbeitskolbendurchmesser (kalt) Metode 1 | C49: D1 [mm] | D49: =Optimierung!D36 -> 8.203827958 | E49: [D2, DT]=const
B50: Arbeitskolbendurchmesser (kalt) Metode 2 | C50: D1 [mm] | D50: =Optimierung!D37 -> 0 | E50: [D2, DT]=const
B51: Arbeitskolbendurchmesser (kalt) Metode 3 | C51: D1 [mm] | D51: =Optimierung!D38 -> 0 | E51: [D2, DT]=const
B52: Arbeitskolbendurchmesser (kalt) für [D2, T1,T2]=const | C52: D1 [mm] | D52: =Opti!B11*1000 -> 7.898169055
B53: Nur sinnvolle Vorgaben führen zu einem vernünftigen Ergebnis.
B54: Prüfe deshalb Deine Angaben und das Diagramm auf Plausibilität!
B55: Sensible inputs lead to a rational result only.
B56: Therefor check your inputs and the diagram for plausibility!

Sheet Value
D3: Eingabe | E3: Umrechnung Rechenwert
A4: Eingabe-Grösse | B4: Symbol | D4: Wert | E4: Wert
A5: Durchmesser Arbeitskolben /-stange (kalte Seite) | B5: D1 [mm] | C5: x 10-3 ® | D5: =Base!D4 -> 7.9 | E5: =D5/1000 -> 0.0079
A6: =IF(D6>D7,"Durchmesser des Verdrägerkolbens # zu groß # (warme Seite)","Durchmesser desVerdrägerkolbens (warme Seite)") -> Durchmesser desVerdrägerkolbens (warme Seite) | B6: D2 [mm] | C6: x 10-3 ® | D6: =Base!D5 -> 17.6 | E6: 0.0176
A7: Zylinderdurchmesser | B7: DC [mm] | C7: x 10-3 ® | D7: =Base!D6 -> 18.2 | E7: 0.0182
A8: Durchmesser der Steuerleitung | B8: DV [mm] | C8: x 10-3 ® | D8: =Base!D7 -> 2 | E8: 0.002
A9: =IF(Base!D8<Base!D9+2*Base!D11, "Länge des Zylinders # zu kurz #", "Länge des Zylinders") -> Länge des Zylinders | B9: LC [mm] | C9: x 10-3 ® | D9: =Base!D8 -> 43 | E9: 0.043
A10: Länge des Verdrängerkolbens | B10: LP [mm] | C10: x 10-3 ® | D10: =Base!D9 -> 23 | E10: 0.023
A11: Länge der Steuerleitung | B11: LV [mm] | C11: x 10-3 ® | D11: =Base!D10 -> 22.5 | E11: 0.0225
A12: Kurbelradius | B12: r [mm] | C12: x 10-3 ® | D12: =Base!D11 -> 10 | E12: 0.01
A13: Pleuelstangenlänge | B13: l [mm] | C13: x 10-3 ® | D13: =Base!D12 -> 43 | E13: 0.043
A15: Temperatur der Umgebung | B15: Tu [°C] | C15: .+273 ® | D15: =Base!D14 -> 20 | E15: =D15+273 -> 293
A16: Temperaturänderung der kalten Seite im Betrieb | B16: DTu [°C] | C16: ® | D16: =Base!D15 -> 60 | E16: =D16 -> 60
A17: Temperatur Varbeitsseite (kalte Seite) | B17: T1=Tmin [°C] | C17: Tu+DT+273 ® | D17: =Base!D16 -> 80 | E17: =D15+E16+273 -> 353
A18: Temperatur Verdängerseite (warme Seite) | B18: T2=Tmax [°C] | C18: .+273 ® | D18: =Base!D17 -> 300 | E18: =D18+273 -> 573
D19: =Base!D18 -> 
A20: atmosphärischer Druck bei offenen Steueröffnungen | B20: patm [105Pa=bar] | C20: x 105 ® | D20: =Base!D19 -> 1.013 | E20: =D20*10^5 -> 101300
A21: Drehzahl (geschätzt / Annahme / Erfahrungswert) | B21: n [1/min] | C21: x1/60 ® | D21: =Base!D20 -> 500 | E21: =D21/60 -> 8.333333333
A22: Winkelschwindigkeit | B22: w [1/s] | C22: p*n/30 | D22: =PI()*D21/30 -> 52.35987756 | E22: =PI()*D21/30 -> 52.35987756
D23: =Base!D21 -> 
A24: spezifische Gaskonstante für Luft | B24: Rs [m²/s²/°K] | C24: .-. | D24: =Base!D24 -> 287 | E24: 287
A25: spez. Wärmekapazität (V=const) | B25: Cv [ J/kg/K] ] | C25: .-. | D25: =Base!D25 -> 740 | E25: =D25 -> 740
A26: spez. Wärmekapazität (p=const) | B26: Cp [J/kg/°K ] | C26: .-. | D26: =Base!D26 -> 1025 | E26: =D26 -> 1025
A27: molale masse der Luft | B27: Mmol [kg/mol] | C27: .-. | D27: =Base!$D$27 -> 0.02896 | E27: =D27 -> 0.02896
A28: Rechengrößen
A29: Pleuelverhältnis | B29: l [-] | C29: r / l | D29: =D12/D13 -> 0.2325581395 | E29: =E12/E13 -> 0.2325581395
A30: Kolbenhub | B30: smax[mm] | C30: 2 ∙r | D30: =2*D12 -> 20 | E30: =2*E12 -> 0.02
A31: Fläche der Arbeitsseite 1 (kalte Seite) | B31: A1 [mm²] | C31: p∙(D22-D12)/4 | D31: =PI()/4*(D6^2-D5^2) -> 194.2682357 | E31: =PI()*(E6^2-E5^2)/4 -> 0.0001942682357
A32: Fläche der Verdrängerseite 2 (warme Seite) | B32: A2 [mm²] | C32: p∙D22/4 | D32: =PI()/4*D6^2 -> 243.2849351 | E32: =PI()*E6^2/4 -> 0.0002432849351
A33: Kolbenstangenfläche | B33: A3 [mm²] | C33: p∙D12/4 | D33: =PI()/4*D5^2 -> 49.01669938 | E33: =PI()*E5^2/4 -> 4.901669938e-05
A34: Maximum des variablen Volumens der Arbeitsseite (kalt) | B34: V01max [mm³] | C34: A1∙smax=A1·2·r | D34: =D31*D30 -> 3885.364714 | E34: =E31*2*E12 -> 3.885364714e-06
A35: Maximum des variblen Volumens der Verdrängerseite (heiss) | B35: V02max [mm³] | C35: A2∙smax=A2·2·r | D35: =D32*D30 -> 4865.698702 | E35: =E32*2*E12 -> 4.865698702e-06
A36: Totvolumen der Arbeitsseite (kalt) | B36: Vd1 [mm³] | D36: =PI()/4*((D6^2-D5^2)*(D9-D10-2*D12)/2+(D7^2-D6^2)*D9/2+D8^2*(D11-D10)) -> 361.1417835 | E36: =D36/10^9 -> 3.611417835e-07
A37: Totvolumen der Verdrängerseite (heiss) | B37: Vd2 [mm³] | D37: =PI()/4*(D6^2*(D9-D10-2*D12)/2+(D7^2-D6^2)*D9/2+D8^2*D10) -> 434.9692109 | E37: =D37/10^9 -> 4.349692109e-07
A38: Maximum des variables Arbeitseiten-Volumen (kalt) | B38: V1max [mm³] | C38: V01max+Vd1 | D38: =D34+D36 -> 4246.506498 | E38: =E34+E36 -> 4.246506498e-06
A39: Maximum des variables Verdränger-Volumen (heiss) | B39: V2max [mm³] | C39: V02max+Vd2 | D39: =D35+D37 -> 5300.667913 | E39: =E35+E37 -> 5.300667913e-06
A40: Minimum des variables Arbeitseiten-Volumen (kalt) | B40: V1min [mm³] | C40: Vd1 | D40: =D36 -> 361.1417835 | E40: =D40/10^9 -> 3.611417835e-07
A41: Minimum des variables Verdränger-Volumen (heiss) | B41: V2min [mm³] | C41: Vd2 | D41: =D37 -> 434.9692109 | E41: =D41/10^9 -> 4.349692109e-07
A42: Maximum des gesamten Volumens mit Toträumen | B42: Vmax [m³] | C42: V2max+Vd1 | D42: =D39+D36 -> 5661.809696 | E42: =D42/10^9 -> 5.661809696e-06
A43: Rechengrösse | C43: V1max/T1 + V2min/T2 | D43: .-. | E43: =E38/E17+E41/E18 -> 1.278887202e-08
A44: Rechengrösse | C44: V1min/T1 + V2max/T2 | D44: .-. | E44: =E40/E17+E39/E18 -> 1.027379388e-08
A45: Dimensionsloses Volumen | C45: V/Vmax=(V1+V2)/(V2max+V1min) | D45: .-. | E45: .-.
A46: Masse des abgekühlten (erneuerten) Volumens (kalt) | B46: m1 [ kg] | C46: patm∙V1max/(Rs∙T1) | D46: .-. | E46: =E20*E38/E24/E17 -> 4.246045427e-06
A47: Masse des erwärmten(erneuerten) Volumens (heiss) | B47: m2 [ kg] | C47: patm∙V02max/(Rs∙T2) | D47: .-. | E47: =E20*E35/E24/E18 -> 2.997216669e-06
A49: Ausgangswinkel für Umlauf | B49: j0 [-°] | C49: =Base!D29 -> 0
A50: Schrittweite | B50: Dj [-°] | C50: =Base!D30 -> 1
A51: Laufindex für Kurbelwinkel | B51: i [-] | C51: =Base!D31 -> 0
A52: Kurbelwinkel | B52: i·Dj [-°] | C52: =Base!D32 -> 0

Sheet Calc
B4: Index | C4: Kurbel-winkel | E4: Kolbenweg | F4: Volumen kalte Seite | G4: Volumen warme Seite | H4: Rechen-größe | I4: Druck | J4: Verängtes Volumen | K4: dimensionsloses pV-Diagramm [-] | M4: pV-Diagramm | O4: Pleuelwinkel | Q4: Pleuelstangenkraft | S4: Kurbelnkraft | U4: mittleres Wellen-moment | V4: Wellen-Leistung | W4: dimensionsloses pV-Diagramm [-]
B5: i | C5: j | D5: j | E5: s | F5: V1 | G5: V2 [m³] | H5: V1/T1+V2/T2 | I5: p | J5: V=A3*s | K5: V/Vmax=V' | L5: p/pmax=p' | M5: V3 | N5: p | O5: b | P5: b | Q5: Fstange | R5: Fn | S5: Frad | T5: Ftan | U5: Mt | V5: PS | W5: (Vwarm+Vkalt)/Vmax=V* | X5: V/Vmax=V** | Y5: Vwarm/Vmax | Z5: p/pm | AA5: Vwarm/Vmax | AB5: patm/pm | AC5: pm1/pm | AD5: pm2/pm | AE5: pm/pm
B6: [ -] | C6: [ °] | D6: [rad] | E6: [m] | F6: [m³] | G6: [m³] | H6: [m³/°K] | I6: [kg/m/s] | J6: [m³] | K6: [-] | L6: [-] | M6: [cm³] | N6: [bar] | O6: [rad] | P6: [grad] | Q6: [N] | R6: [N] | S6: [N] | T6: [N] | U6: [Nm] | V6: [Nm/s] | W6: [-] | X6: [-] | Y6: [-] | Z6: [-] | AA6: [-] | AB6: [-] | AC6: [-] | AD6: [-] | AE6: [-]
A7: OT | B7: 1 | C7: 0 | D7: =PI()/180*C7 -> 0 | E7: =Value!$E$12*((1-COS(D7))+1/Value!$E$29*(1-(1-(Value!$E$29*SIN(D7))^2)^0.5)) -> 0 | F7: =Value!$E$31*(Value!$E$30-E7)+Value!$E$36 -> 4.246506498e-06 | G7: =Value!$E$32*E7+Value!$E$37 -> 4.349692109e-07 | H7: =F7/Value!$E$17+G7/Value!$E$18 -> 1.278887202e-08 | I7: =Value!$E$20*Value!$E$43/(Calc!F7/Value!$E$17+Calc!G7/Value!$E$18) -> 101300 | J7: =Value!$E$33*Calc!E7 -> 0 | K7: =Calc!J7/(Value!$E$33*Value!$E$30) -> 0 | L7: =I7/$I$19 -> 0.8033385484 | M7: =J7*10^6 -> 0 | N7: =I7/10^5 -> 1.013 | O7: =ASIN(Value!$E$29*SIN(Calc!D7)) -> 0 | P7: =360/PI()*O7 -> 0 | Q7: =Value!$E$33*(I7-Value!$E$20)/(1-Value!$D$29^2*SIN(Calc!D7)^2)^0.5 -> 0 | R7: =Value!$E$33*(Calc!I7-Value!$E$20)*TAN(O7) -> 0 | S7: =Q7*COS(D7+O7) -> 0 | T7: =(I7-Value!$E$20)*Value!$E$33*(SIN(D7)+Value!$E$29/2*SIN(2*D7)/(1-Value!$E$29^2*SIN(D7)^2)^0.5) -> 0 | U7: =T7*Value!$E$12 -> 0 | V7: =U7*Value!$E$22 -> 0 | W7: =($F7+$G7-1*Value!$E$36-1*Value!$E$37)/Value!$E$42 -> 0.6862407822 | X7: =(F7+G7)/($F$19+$G$19) -> 0.8268514768 | Y7: =G7*10^9/Value!$D$39 -> 0.08205932121 | Z7: =I7/10^5*2/($I$42+$I$45) -> 0.9960230836 | AA7: 0 | AB7: =1.013*2/(I42+I45) -> 0.9960230836 | AC7: =I41*2/(I42+I45) -> 1.109054094 | AD7: =I45*2/(I42+I45) -> 0.890945906 | AE7: 1
B8: 2 | C8: 15 | D8: 0.2617993878 | E8: =Value!$E$12*((1-COS(D8))+1/Value!$E$29*(1-(1-(Value!$E$29*SIN(D8))^2)^0.5)) -> 0.0004187046211 | F8: =Value!$E$31*(Value!$E$30-E8)+Value!$E$36 -> 4.16516549e-06 | G8: =Value!$E$32*E8+Value!$E$37 -> 5.368337374e-07 | H8: =F8/Value!$E$17+G8/Value!$E$18 -> 1.273621828e-08 | I8: =Value!$E$20*Value!$E$43/(Calc!F8/Value!$E$17+Calc!G8/Value!$E$18) -> 101718.7918 | J8: =Value!$E$33*Calc!E8 -> 2.052351854e-08 | K8: =Calc!J8/(Value!$E$33*Value!$E$30) -> 0.02093523105 | L8: =I8/$I$19 -> 0.8066596897 | M8: 0.02052351854 | N8: 1.017187918 | O8: =ASIN(Value!$E$29*SIN(Calc!D8)) -> 0.06022687893 | P8: =360/PI()*O8 -> 6.901491952 | Q8: =Value!$E$33*(I8-Value!$E$20)/(1-Value!$D$29^2*SIN(Calc!D8)^2)^0.5 -> 0.02056507917 | R8: =Value!$E$33*(Calc!I8-Value!$E$20)*TAN(O8) -> 0.001237821896 | S8: 0.01950795337 | T8: =(I8-Value!$E$20)*Value!$E$33*(SIN(D8)+Value!$E$29/2*SIN(2*D8)/(1-Value!$E$29^2*SIN(D8)^2)^0.5) -> 0.006508627876 | U8: =T8*Value!$E$12 -> 6.508627876e-05 | V8: =U8*Value!$E$22 -> 0.003407909587 | W8: =($F8+$G8-1*Value!$E$36-1*Value!$E$37)/Value!$E$42 -> 0.6898656865 | X8: =(F8+G8)/($F$19+$G$19) -> 0.8304763811 | Y8: =G8*10^9/Value!$D$39 -> 0.1012766214 | Z8: =I8/10^5*2/($I$42+$I$45) -> 1.000140816 | AA8: 1.1 | AB8: =1.013*2/(I42+I45) -> 0.9960230836 | AC8: =I41*2/(I42+I45) -> 1.109054094 | AD8: =I45*2/(I42+I45) -> 0.890945906 | AE8: 1
B9: 3 | C9: 30 | D9: 0.5235987756 | E9: =Value!$E$12*((1-COS(D9))+1/Value!$E$29*(1-(1-(Value!$E$29*SIN(D9))^2)^0.5)) -> 0.001631432954 | F9: =Value!$E$31*(Value!$E$30-E9)+Value!$E$36 -> 3.929570896e-06 | G9: =Value!$E$32*E9+Value!$E$37 -> 8.318722712e-07 | H9: =F9/Value!$E$17+G9/Value!$E$18 -> 1.258371295e-08 | I9: =Value!$E$20*Value!$E$43/(Calc!F9/Value!$E$17+Calc!G9/Value!$E$18) -> 102951.5486 | J9: =Value!$E$33*Calc!E9 -> 7.996745866e-08 | K9: =Calc!J9/(Value!$E$33*Value!$E$30) -> 0.0815716477 | L9: 0.8164358105 | M9: 0.07996745866 | N9: 1.029515486 | O9: =ASIN(Value!$E$29*SIN(Calc!D9)) -> 0.1165427084 | P9: 13.35481065 | Q9: =Value!$E$33*(I9-Value!$E$20)/(1-Value!$D$29^2*SIN(Calc!D9)^2)^0.5 -> 0.08150635311 | R9: =Value!$E$33*(Calc!I9-Value!$E$20)*TAN(O9) -> 0.00947748292 | S9: 0.06536901265 | T9: =(I9-Value!$E$20)*Value!$E$33*(SIN(D9)+Value!$E$29/2*SIN(2*D9)/(1-Value!$E$29^2*SIN(D9)^2)^0.5) -> 0.04868447168 | U9: =T9*Value!$E$12 -> 0.0004868447168 | V9: =U9*Value!$E$22 -> 0.02549112976 | W9: =($F9+$G9-1*Value!$E$36-1*Value!$E$37)/Value!$E$42 -> 0.7003647925 | X9: 0.8409754871 | Y9: =G9*10^9/Value!$D$39 -> 0.1569372549 | Z9: 1.012261786
B10: 4 | C10: 45 | D10: 0.7853981634 | E10: =Value!$E$12*((1-COS(D10))+1/Value!$E$29*(1-(1-(Value!$E$29*SIN(D10))^2)^0.5)) -> 0.003514312067 | F10: =Value!$E$31*(Value!$E$30-E10)+Value!$E$36 -> 3.563787293e-06 | G10: =Value!$E$32*E10+Value!$E$37 -> 1.289948394e-06 | H10: =F10/Value!$E$17+G10/Value!$E$18 -> 1.234693355e-08 | I10: =Value!$E$20*Value!$E$43/(Calc!F10/Value!$E$17+Calc!G10/Value!$E$18) -> 104925.8693 | J10: =Value!$E$33*Calc!E10 -> 1.722599781e-07 | K10: =Calc!J10/(Value!$E$33*Value!$E$30) -> 0.1757156034 | L10: 0.8320927495 | M10: 0.1722599781 | N10: 1.049258693 | O10: =ASIN(Value!$E$29*SIN(Calc!D10)) -> 0.1651937409 | P10: 18.92980831 | Q10: =Value!$E$33*(I10-Value!$E$20)/(1-Value!$D$29^2*SIN(Calc!D10)^2)^0.5 -> 0.1801810371 | R10: =Value!$E$33*(Calc!I10-Value!$E$20)*TAN(O10) -> 0.02962958912 | S10: 0.1047214933 | T10: =(I10-Value!$E$20)*Value!$E$33*(SIN(D10)+Value!$E$29/2*SIN(2*D10)/(1-Value!$E$29^2*SIN(D10)^2)^0.5) -> 0.1466240601 | U10: =T10*Value!$E$12 -> 0.001466240601 | V10: =U10*Value!$E$22 -> 0.07677217832 | W10: =($F10+$G10-1*Value!$E$36-1*Value!$E$37)/Value!$E$42 -> 0.7166656794 | X10: 0.857276374 | Y10: =G10*10^9/Value!$D$39 -> 0.2433558214 | Z10: 1.031674115
B11: 5 | C11: 60 | D11: 1.047197551 | E11: =Value!$E$12*((1-COS(D11))+1/Value!$E$29*(1-(1-(Value!$E$29*SIN(D11))^2)^0.5)) -> 0.005881120623 | F11: =Value!$E$31*(Value!$E$30-E11)+Value!$E$36 -> 3.10399157e-06 | G11: =Value!$E$32*E11+Value!$E$37 -> 1.86575726e-06 | H11: =F11/Value!$E$17+G11/Value!$E$18 -> 1.204929813e-08 | I11: =Value!$E$20*Value!$E$43/(Calc!F11/Value!$E$17+Calc!G11/Value!$E$18) -> 107517.6929 | J11: =Value!$E$33*Calc!E11 -> 2.882731216e-07 | K11: =Calc!J11/(Value!$E$33*Value!$E$30) -> 0.2940560311 | L11: 0.8526466668 | M11: 0.2882731216 | N11: 1.075176929 | O11: =ASIN(Value!$E$29*SIN(Calc!D11)) -> 0.2027882817 | P11: 23.23782535 | Q11: =Value!$E$33*(I11-Value!$E$20)/(1-Value!$D$29^2*SIN(Calc!D11)^2)^0.5 -> 0.3111465432 | R11: =Value!$E$33*(Calc!I11-Value!$E$20)*TAN(O11) -> 0.06266530482 | S11: 0.09811564621 | T11: =(I11-Value!$E$20)*Value!$E$33*(SIN(D11)+Value!$E$29/2*SIN(2*D11)/(1-Value!$E$29^2*SIN(D11)^2)^0.5) -> 0.2952718939 | U11: =T11*Value!$E$12 -> 0.002952718939 | V11: =U11*Value!$E$22 -> 0.1546040021 | W11: =($F11+$G11-1*Value!$E$36-1*Value!$E$37)/Value!$E$42 -> 0.7371561497 | X11: 0.8777668443 | Y11: =G11*10^9/Value!$D$39 -> 0.351985314 | Z11: 1.057157987
B12: 6 | C12: 75 | D12: 1.308996939 | E12: =Value!$E$12*((1-COS(D12))+1/Value!$E$29*(1-(1-(Value!$E$29*SIN(D12))^2)^0.5)) -> 0.008510750734 | F12: =Value!$E$31*(Value!$E$30-E12)+Value!$E$36 -> 2.593137968e-06 | G12: =Value!$E$32*E12+Value!$E$37 -> 2.505506651e-06 | H12: =F12/Value!$E$17+G12/Value!$E$18 -> 1.171861187e-08 | I12: =Value!$E$20*Value!$E$43/(Calc!F12/Value!$E$17+Calc!G12/Value!$E$18) -> 110551.7232 | J12: =Value!$E$33*Calc!E12 -> 4.171689102e-07 | K12: =Calc!J12/(Value!$E$33*Value!$E$30) -> 0.4255375367 | L12: 0.8767074123 | M12: 0.4171689102 | N12: 1.105517232 | O12: =ASIN(Value!$E$29*SIN(Calc!D12)) -> 0.2265673316 | P12: 25.96270375 | Q12: =Value!$E$33*(I12-Value!$E$20)/(1-Value!$D$29^2*SIN(Calc!D12)^2)^0.5 -> 0.4653826137 | R12: =Value!$E$33*(Calc!I12-Value!$E$20)*TAN(O12) -> 0.1045407176 | S12: 0.01639299447 | T12: =(I12-Value!$E$20)*Value!$E$33*(SIN(D12)+Value!$E$29/2*SIN(2*D12)/(1-Value!$E$29^2*SIN(D12)^2)^0.5) -> 0.4650938044 | U12: =T12*Value!$E$12 -> 0.004650938044 | V12: =U12*Value!$E$22 -> 0.2435225465 | W12: =($F12+$G12-1*Value!$E$36-1*Value!$E$37)/Value!$E$42 -> 0.7599219782 | X12: 0.9005326728 | Y12: =G12*10^9/Value!$D$39 -> 0.4726775365 | Z12: 1.086989815
B13: 7 | C13: 90 | D13: 1.570796327 | E13: =Value!$E$12*((1-COS(D13))+1/Value!$E$29*(1-(1-(Value!$E$29*SIN(D13))^2)^0.5)) -> 0.01117895267 | F13: =Value!$E$31*(Value!$E$30-E13)+Value!$E$36 -> 2.074791086e-06 | G13: =Value!$E$32*E13+Value!$E$37 -> 3.154639985e-06 | H13: =F13/Value!$E$17+G13/Value!$E$18 -> 1.138307505e-08 | I13: =Value!$E$20*Value!$E$43/(Calc!F13/Value!$E$17+Calc!G13/Value!$E$18) -> 113810.4361 | J13: =Value!$E$33*Calc!E13 -> 5.479553623e-07 | K13: =Calc!J13/(Value!$E$33*Value!$E$30) -> 0.5589476334 | L13: 0.902549956 | M13: 0.5479553623 | N13: 1.138104361 | O13: =ASIN(Value!$E$29*SIN(Calc!D13)) -> 0.2347071138 | P13: 26.89545409 | Q13: =Value!$E$33*(I13-Value!$E$20)/(1-Value!$D$29^2*SIN(Calc!D13)^2)^0.5 -> 0.6305072207 | R13: =Value!$E$33*(Calc!I13-Value!$E$20)*TAN(O13) -> 0.1466295862 | S13: -0.1466295862 | T13: =(I13-Value!$E$20)*Value!$E$33*(SIN(D13)+Value!$E$29/2*SIN(2*D13)/(1-Value!$E$29^2*SIN(D13)^2)^0.5) -> 0.6132202865 | U13: =T13*Value!$E$12 -> 0.006132202865 | V13: =U13*Value!$E$22 -> 0.3210813912 | W13: =($F13+$G13-1*Value!$E$36-1*Value!$E$37)/Value!$E$42 -> 0.7830217394 | X13: 0.9236324341 | Y13: =G13*10^9/Value!$D$39 -> 0.5951400912 | Z13: 1.119030815
B14: 8 | C14: 105 | D14: 1.832595715 | E14: =Value!$E$12*((1-COS(D14))+1/Value!$E$29*(1-(1-(Value!$E$29*SIN(D14))^2)^0.5)) -> 0.01368713164 | F14: =Value!$E$31*(Value!$E$30-E14)+Value!$E$36 -> 1.587531583e-06 | G14: =Value!$E$32*E14+Value!$E$37 -> 3.764842143e-06 | H14: =F14/Value!$E$17+G14/Value!$E$18 -> 1.106766174e-08 | I14: =Value!$E$20*Value!$E$43/(Calc!F14/Value!$E$17+Calc!G14/Value!$E$18) -> 117053.8787 | J14: =Value!$E$33*Calc!E14 -> 6.708980167e-07 | K14: =Calc!J14/(Value!$E$33*Value!$E$30) -> 0.6843565818 | L14: 0.928271402 | M14: 0.6708980167 | N14: 1.170538787 | O14: =ASIN(Value!$E$29*SIN(Calc!D14)) -> 0.2265673316 | P14: 25.96270375 | Q14: =Value!$E$33*(I14-Value!$E$20)/(1-Value!$D$29^2*SIN(Calc!D14)^2)^0.5 -> 0.7924557487 | R14: =Value!$E$33*(Calc!I14-Value!$E$20)*TAN(O14) -> 0.1780124358 | S14: -0.3718076879 | T14: =(I14-Value!$E$20)*Value!$E$33*(SIN(D14)+Value!$E$29/2*SIN(2*D14)/(1-Value!$E$29^2*SIN(D14)^2)^0.5) -> 0.6998179455 | U14: =T14*Value!$E$12 -> 0.006998179455 | V14: =U14*Value!$E$22 -> 0.3664238194 | W14: =($F14+$G14-1*Value!$E$36-1*Value!$E$37)/Value!$E$42 -> 0.8047361136 | X14: 0.9453468083 | Y14: =G14*10^9/Value!$D$39 -> 0.7102580664 | Z14: 1.150921671
B15: 9 | C15: 120 | D15: 2.094395102 | E15: =Value!$E$12*((1-COS(D15))+1/Value!$E$29*(1-(1-(Value!$E$29*SIN(D15))^2)^0.5)) -> 0.01588112062 | F15: =Value!$E$31*(Value!$E$30-E15)+Value!$E$36 -> 1.161309213e-06 | G15: =Value!$E$32*E15+Value!$E$37 -> 4.298606611e-06 | H15: =F15/Value!$E$17+G15/Value!$E$18 -> 1.079175906e-08 | I15: =Value!$E$20*Value!$E$43/(Calc!F15/Value!$E$17+Calc!G15/Value!$E$18) -> 120046.4844 | J15: =Value!$E$33*Calc!E15 -> 7.784401153e-07 | K15: =Calc!J15/(Value!$E$33*Value!$E$30) -> 0.7940560311 | L15: 0.9520036381 | M15: 0.7784401153 | N15: 1.200464844 | O15: =ASIN(Value!$E$29*SIN(Calc!D15)) -> 0.2027882817 | P15: 23.23782535 | Q15: =Value!$E$33*(I15-Value!$E$20)/(1-Value!$D$29^2*SIN(Calc!D15)^2)^0.5 -> 0.9381138489 | R15: =Value!$E$33*(Calc!I15-Value!$E$20)*TAN(O15) -> 0.1889373081 | S15: -0.6230699044 | T15: =(I15-Value!$E$20)*Value!$E$33*(SIN(D15)+Value!$E$29/2*SIN(2*D15)/(1-Value!$E$29^2*SIN(D15)^2)^0.5) -> 0.7013141149 | U15: =T15*Value!$E$12 -> 0.007013141149 | V15: =U15*Value!$E$22 -> 0.3672072118 | W15: =($F15+$G15-1*Value!$E$36-1*Value!$E$37)/Value!$E$42 -> 0.8237304113 | X15: 0.9643411059 | Y15: =G15*10^9/Value!$D$39 -> 0.8109556534 | Z15: 1.180346195
B16: 10 | C16: 135 | D16: 2.35619449 | E16: =Value!$E$12*((1-COS(D16))+1/Value!$E$29*(1-(1-(Value!$E$29*SIN(D16))^2)^0.5)) -> 0.01765644769 | F16: =Value!$E$31*(Value!$E$30-E16)+Value!$E$36 -> 8.164195559e-07 | G16: =Value!$E$32*E16+Value!$E$37 -> 4.730516941e-06 | H16: =F16/Value!$E$17+G16/Value!$E$18 -> 1.056850474e-08 | I16: =Value!$E$20*Value!$E$43/(Calc!F16/Value!$E$17+Calc!G16/Value!$E$18) -> 122582.4057 | J16: =Value!$E$33*Calc!E16 -> 8.654607885e-07 | K16: =Calc!J16/(Value!$E$33*Value!$E$30) -> 0.8828223845 | L16: 0.9721142332 | M16: 0.8654607885 | N16: 1.225824057 | O16: =ASIN(Value!$E$29*SIN(Calc!D16)) -> 0.1651937409 | P16: 18.92980831 | Q16: =Value!$E$33*(I16-Value!$E$20)/(1-Value!$D$29^2*SIN(Calc!D16)^2)^0.5 -> 1.057590777 | R16: =Value!$E$33*(Calc!I16-Value!$E$20)*TAN(O16) -> 0.1739138629 | S16: -0.8606247146 | T16: =(I16-Value!$E$20)*Value!$E$33*(SIN(D16)+Value!$E$29/2*SIN(2*D16)/(1-Value!$E$29^2*SIN(D16)^2)^0.5) -> 0.614673371 | U16: =T16*Value!$E$12 -> 0.00614673371 | V16: =U16*Value!$E$22 -> 0.3218422244 | W16: =($F16+$G16-1*Value!$E$36-1*Value!$E$37)/Value!$E$42 -> 0.8391001743 | X16: 0.9797108689 | Y16: =G16*10^9/Value!$D$39 -> 0.8924379001 | Z16: 1.205280412
B17: 11 | C17: 150 | D17: 2.617993878 | E17: =Value!$E$12*((1-COS(D17))+1/Value!$E$29*(1-(1-(Value!$E$29*SIN(D17))^2)^0.5)) -> 0.01895194103 | F17: =Value!$E$31*(Value!$E$30-E17)+Value!$E$36 -> 5.647463506e-07 | G17: =Value!$E$32*E17+Value!$E$37 -> 5.045690954e-06 | H17: =F17/Value!$E$17+G17/Value!$E$18 -> 1.040559139e-08 | I17: =Value!$E$20*Value!$E$43/(Calc!F17/Value!$E$17+Calc!G17/Value!$E$18) -> 124501.596 | J17: =Value!$E$33*Calc!E17 -> 9.289615961e-07 | K17: =Calc!J17/(Value!$E$33*Value!$E$30) -> 0.9475970515 | L17: 0.9873339722 | M17: 0.9289615961 | N17: 1.24501596 | O17: =ASIN(Value!$E$29*SIN(Calc!D17)) -> 0.1165427084 | P17: 13.35481065 | Q17: =Value!$E$33*(I17-Value!$E$20)/(1-Value!$D$29^2*SIN(Calc!D17)^2)^0.5 -> 1.145032892 | R17: =Value!$E$33*(Calc!I17-Value!$E$20)*TAN(O17) -> 0.1331433596 | S17: -1.051472628 | T17: =(I17-Value!$E$20)*Value!$E$33*(SIN(D17)+Value!$E$29/2*SIN(2*D17)/(1-Value!$E$29^2*SIN(D17)^2)^0.5) -> 0.4533272958 | U17: =T17*Value!$E$12 -> 0.004533272958 | V17: =U17*Value!$E$22 -> 0.237361617 | W17: =($F17+$G17-1*Value!$E$36-1*Value!$E$37)/Value!$E$42 -> 0.8503158122 | X17: 0.9909265069 | Y17: =G17*10^9/Value!$D$39 -> 0.9518972019 | Z17: 1.224150677
B18: 12 | C18: 165 | D18: 2.879793266 | E18: =Value!$E$12*((1-COS(D18))+1/Value!$E$29*(1-(1-(Value!$E$29*SIN(D18))^2)^0.5)) -> 0.01973722115 | F18: =Value!$E$31*(Value!$E$30-E18)+Value!$E$36 -> 4.121913677e-07 | G18: =Value!$E$32*E18+Value!$E$37 -> 5.236737777e-06 | H18: =F18/Value!$E$17+G18/Value!$E$18 -> 1.030683935e-08 | I18: =Value!$E$20*Value!$E$43/(Calc!F18/Value!$E$17+Calc!G18/Value!$E$18) -> 125694.4725 | J18: =Value!$E$33*Calc!E18 -> 9.674534355e-07 | K18: =Calc!J18/(Value!$E$33*Value!$E$30) -> 0.9868610573 | L18: 0.9967938311 | M18: 0.9674534355 | N18: 1.256944725 | O18: =ASIN(Value!$E$29*SIN(Calc!D18)) -> 0.06022687893 | P18: 6.901491952 | Q18: =Value!$E$33*(I18-Value!$E$20)/(1-Value!$D$29^2*SIN(Calc!D18)^2)^0.5 -> 1.197908442 | R18: =Value!$E$33*(Calc!I18-Value!$E$20)*TAN(O18) -> 0.07210267888 | S18: -1.173654339 | T18: =(I18-Value!$E$20)*Value!$E$33*(SIN(D18)+Value!$E$29/2*SIN(2*D18)/(1-Value!$E$29^2*SIN(D18)^2)^0.5) -> 0.2398335462 | U18: =T18*Value!$E$12 -> 0.002398335462 | V18: =U18*Value!$E$22 -> 0.1255765511 | W18: =($F18+$G18-1*Value!$E$36-1*Value!$E$37)/Value!$E$42 -> 0.8571143168 | X18: 0.9977250115 | Y18: =G18*10^9/Value!$D$39 -> 0.9879392301 | Z18: 1.235879527
A19: UT | B19: 13 | C19: 180 | D19: 3.141592654 | E19: =Value!$E$12*((1-COS(D19))+1/Value!$E$29*(1-(1-(Value!$E$29*SIN(D19))^2)^0.5)) -> 0.02 | F19: =Value!$E$31*(Value!$E$30-E19)+Value!$E$36 -> 3.611417835e-07 | G19: =Value!$E$32*E19+Value!$E$37 -> 5.300667913e-06 | H19: =F19/Value!$E$17+G19/Value!$E$18 -> 1.027379388e-08 | I19: =Value!$E$20*Value!$E$43/(Calc!F19/Value!$E$17+Calc!G19/Value!$E$18) -> 126098.7665 | J19: =Value!$E$33*Calc!E19 -> 9.803339876e-07 | K19: =Calc!J19/(Value!$E$33*Value!$E$30) -> 1 | L19: 1 | M19: 0.9803339876 | N19: 1.260987665 | O19: =ASIN(Value!$E$29*SIN(Calc!D19)) -> 2.849182453e-17 | P19: 3.264922593e-15 | Q19: =Value!$E$33*(I19-Value!$E$20)/(1-Value!$D$29^2*SIN(Calc!D19)^2)^0.5 -> 1.215553681 | R19: =Value!$E$33*(Calc!I19-Value!$E$20)*TAN(O19) -> 3.463334218e-17 | S19: -1.215553681 | T19: =(I19-Value!$E$20)*Value!$E$33*(SIN(D19)+Value!$E$29/2*SIN(2*D19)/(1-Value!$E$29^2*SIN(D19)^2)^0.5) -> 1.142900292e-16 | U19: =T19*Value!$E$12 -> 1.142900292e-18 | V19: =U19*Value!$E$22 -> 5.984211934e-17 | W19: =($F19+$G19-1*Value!$E$36-1*Value!$E$37)/Value!$E$42 -> 0.8593893054 | X19: 1 | Y19: =G19*10^9/Value!$D$39 -> 1 | Z19: 1.239854711
B20: 14 | C20: 180 | D20: 3.141592654 | E20: =Value!$E$12*((1-COS(D20))+1/Value!$E$29*(1-(1-(Value!$E$29*SIN(D20))^2)^0.5)) -> 0.02 | F20: =Value!$E$31*(Value!$E$30-E20)+Value!$E$36 -> 3.611417835e-07 | G20: =Value!$E$32*E20+Value!$E$37 -> 5.300667913e-06 | H20: =F20/Value!$E$17+G20/Value!$E$18 -> 1.027379388e-08 | I20: =Value!$E$20*Value!$E$44/(Calc!F20/Value!$E$17+Calc!G20/Value!$E$18) -> 101300 | J20: =Value!$E$33*Calc!E20 -> 9.803339876e-07 | K20: =Calc!J20/(Value!$E$33*Value!$E$30) -> 1 | L20: 0.8033385484 | M20: 0.9803339876 | N20: 1.013 | O20: =ASIN(Value!$E$29*SIN(Calc!D20)) -> 2.849182453e-17 | P20: 3.264922593e-15 | Q20: =Value!$E$33*(I20-Value!$E$20)/(1-Value!$D$29^2*SIN(Calc!D20)^2)^0.5 -> 0 | R20: =Value!$E$33*(Calc!I20-Value!$E$20)*TAN(O20) -> 0 | S20: 0 | T20: =(I20-Value!$E$20)*Value!$E$33*(SIN(D20)+Value!$E$29/2*SIN(2*D20)/(1-Value!$E$29^2*SIN(D20)^2)^0.5) -> 0 | U20: =T20*Value!$E$12 -> 0 | V20: =U20*Value!$E$22 -> 0 | W20: =($F20+$G20-1*Value!$E$36-1*Value!$E$37)/Value!$E$42 -> 0.8593893054 | X20: 1 | Y20: =G20*10^9/Value!$D$39 -> 1 | Z20: 0.9960230836
B21: 15 | C21: 195 | D21: 3.403392041 | E21: =Value!$E$12*((1-COS(D21))+1/Value!$E$29*(1-(1-(Value!$E$29*SIN(D21))^2)^0.5)) -> 0.01973722115 | F21: =Value!$E$31*(Value!$E$30-E21)+Value!$E$36 -> 4.121913677e-07 | G21: =Value!$E$32*E21+Value!$E$37 -> 5.236737777e-06 | H21: =F21/Value!$E$17+G21/Value!$E$18 -> 1.030683935e-08 | I21: =Value!$E$20*Value!$E$44/(Calc!F21/Value!$E$17+Calc!G21/Value!$E$18) -> 100975.2151 | J21: =Value!$E$33*Calc!E21 -> 9.674534355e-07 | K21: =Calc!J21/(Value!$E$33*Value!$E$30) -> 0.9868610573 | L21: 0.8007629093 | M21: 0.9674534355 | N21: 1.009752151 | O21: =ASIN(Value!$E$29*SIN(Calc!D21)) -> -0.06022687893 | P21: -6.901491952 | Q21: =Value!$E$33*(I21-Value!$E$20)/(1-Value!$D$29^2*SIN(Calc!D21)^2)^0.5 -> -0.01594880071 | R21: =Value!$E$33*(Calc!I21-Value!$E$20)*TAN(O21) -> 0.0009599659 | S21: 0.01562588465 | T21: =(I21-Value!$E$20)*Value!$E$33*(SIN(D21)+Value!$E$29/2*SIN(2*D21)/(1-Value!$E$29^2*SIN(D21)^2)^0.5) -> 0.003193113344 | U21: =T21*Value!$E$12 -> 3.193113344e-05 | V21: =U21*Value!$E$22 -> 0.001671910237 | W21: =($F21+$G21-1*Value!$E$36-1*Value!$E$37)/Value!$E$42 -> 0.8571143168 | X21: 0.9977250115 | Y21: =G21*10^9/Value!$D$39 -> 0.9879392301 | Z21: 0.9928296654
B22: 16 | C22: 210 | D22: 3.665191429 | E22: =Value!$E$12*((1-COS(D22))+1/Value!$E$29*(1-(1-(Value!$E$29*SIN(D22))^2)^0.5)) -> 0.01895194103 | F22: =Value!$E$31*(Value!$E$30-E22)+Value!$E$36 -> 5.647463506e-07 | G22: =Value!$E$32*E22+Value!$E$37 -> 5.045690954e-06 | H22: =F22/Value!$E$17+G22/Value!$E$18 -> 1.040559139e-08 | I22: =Value!$E$20*Value!$E$44/(Calc!F22/Value!$E$17+Calc!G22/Value!$E$18) -> 100016.9314 | J22: =Value!$E$33*Calc!E22 -> 9.289615961e-07 | K22: =Calc!J22/(Value!$E$33*Value!$E$30) -> 0.9475970515 | L22: 0.79316344 | M22: 0.9289615961 | N22: 1.000169314 | O22: =ASIN(Value!$E$29*SIN(Calc!D22)) -> -0.1165427084 | P22: -13.35481065 | Q22: =Value!$E$33*(I22-Value!$E$20)/(1-Value!$D$29^2*SIN(Calc!D22)^2)^0.5 -> -0.06332132377 | R22: =Value!$E$33*(Calc!I22-Value!$E$20)*TAN(O22) -> 0.007362944625 | S22: 0.05814735905 | T22: =(I22-Value!$E$20)*Value!$E$33*(SIN(D22)+Value!$E$29/2*SIN(2*D22)/(1-Value!$E$29^2*SIN(D22)^2)^0.5) -> 0.02506939728 | U22: =T22*Value!$E$12 -> 0.0002506939728 | V22: =U22*Value!$E$22 -> 0.01312630572 | W22: =($F22+$G22-1*Value!$E$36-1*Value!$E$37)/Value!$E$42 -> 0.8503158122 | X22: 0.9909265069 | Y22: =G22*10^9/Value!$D$39 -> 0.9518972019 | Z22: 0.9834074275
B23: 17 | C23: 225 | D23: 3.926990817 | E23: =Value!$E$12*((1-COS(D23))+1/Value!$E$29*(1-(1-(Value!$E$29*SIN(D23))^2)^0.5)) -> 0.01765644769 | F23: =Value!$E$31*(Value!$E$30-E23)+Value!$E$36 -> 8.164195559e-07 | G23: =Value!$E$32*E23+Value!$E$37 -> 4.730516941e-06 | H23: =F23/Value!$E$17+G23/Value!$E$18 -> 1.056850474e-08 | I23: =Value!$E$20*Value!$E$44/(Calc!F23/Value!$E$17+Calc!G23/Value!$E$18) -> 98475.17182 | J23: =Value!$E$33*Calc!E23 -> 8.654607885e-07 | K23: =Calc!J23/(Value!$E$33*Value!$E$30) -> 0.8828223845 | L23: 0.7809368369 | M23: 0.8654607885 | N23: 0.9847517182 | O23: =ASIN(Value!$E$29*SIN(Calc!D23)) -> -0.1651937409 | P23: -18.92980831 | Q23: =Value!$E$33*(I23-Value!$E$20)/(1-Value!$D$29^2*SIN(Calc!D23)^2)^0.5 -> -0.1403747431 | R23: =Value!$E$33*(Calc!I23-Value!$E$20)*TAN(O23) -> 0.02308370529 | S23: 0.1142313036 | T23: =(I23-Value!$E$20)*Value!$E$33*(SIN(D23)+Value!$E$29/2*SIN(2*D23)/(1-Value!$E$29^2*SIN(D23)^2)^0.5) -> 0.08158601453 | U23: =T23*Value!$E$12 -> 0.0008158601453 | V23: =U23*Value!$E$22 -> 0.04271833731 | W23: =($F23+$G23-1*Value!$E$36-1*Value!$E$37)/Value!$E$42 -> 0.8391001743 | X23: 0.9797108689 | Y23: =G23*10^9/Value!$D$39 -> 0.8924379001 | Z23: 0.9682482162
B24: 18 | C24: 240 | D24: 4.188790205 | E24: =Value!$E$12*((1-COS(D24))+1/Value!$E$29*(1-(1-(Value!$E$29*SIN(D24))^2)^0.5)) -> 0.01588112062 | F24: =Value!$E$31*(Value!$E$30-E24)+Value!$E$36 -> 1.161309213e-06 | G24: =Value!$E$32*E24+Value!$E$37 -> 4.298606611e-06 | H24: =F24/Value!$E$17+G24/Value!$E$18 -> 1.079175906e-08 | I24: =Value!$E$20*Value!$E$44/(Calc!F24/Value!$E$17+Calc!G24/Value!$E$18) -> 96437.96854 | J24: =Value!$E$33*Calc!E24 -> 7.784401153e-07 | K24: =Calc!J24/(Value!$E$33*Value!$E$30) -> 0.7940560311 | L24: 0.7647812207 | M24: 0.7784401153 | N24: 0.9643796854 | O24: =ASIN(Value!$E$29*SIN(Calc!D24)) -> -0.2027882817 | P24: -23.23782535 | Q24: =Value!$E$33*(I24-Value!$E$20)/(1-Value!$D$29^2*SIN(Calc!D24)^2)^0.5 -> -0.2433063685 | R24: =Value!$E$33*(Calc!I24-Value!$E$20)*TAN(O24) -> 0.04900220837 | S24: 0.1615975245 | T24: =(I24-Value!$E$20)*Value!$E$33*(SIN(D24)+Value!$E$29/2*SIN(2*D24)/(1-Value!$E$29^2*SIN(D24)^2)^0.5) -> 0.1818907062 | U24: =T24*Value!$E$12 -> 0.001818907062 | V24: =U24*Value!$E$22 -> 0.09523775104 | W24: =($F24+$G24-1*Value!$E$36-1*Value!$E$37)/Value!$E$42 -> 0.8237304113 | X24: 0.9643411059 | Y24: =G24*10^9/Value!$D$39 -> 0.8109556534 | Z24: 0.9482175992
B25: 19 | C25: 255 | D25: 4.450589593 | E25: =Value!$E$12*((1-COS(D25))+1/Value!$E$29*(1-(1-(Value!$E$29*SIN(D25))^2)^0.5)) -> 0.01368713164 | F25: =Value!$E$31*(Value!$E$30-E25)+Value!$E$36 -> 1.587531583e-06 | G25: =Value!$E$32*E25+Value!$E$37 -> 3.764842143e-06 | H25: =F25/Value!$E$17+G25/Value!$E$18 -> 1.106766174e-08 | I25: =Value!$E$20*Value!$E$44/(Calc!F25/Value!$E$17+Calc!G25/Value!$E$18) -> 94033.89302 | J25: =Value!$E$33*Calc!E25 -> 6.708980167e-07 | K25: =Calc!J25/(Value!$E$33*Value!$E$30) -> 0.6843565818 | L25: 0.7457162006 | M25: 0.6708980167 | N25: 0.9403389302 | O25: =ASIN(Value!$E$29*SIN(Calc!D25)) -> -0.2265673316 | P25: -25.96270375 | Q25: =Value!$E$33*(I25-Value!$E$20)/(1-Value!$D$29^2*SIN(Calc!D25)^2)^0.5 -> -0.3655016229 | R25: =Value!$E$33*(Calc!I25-Value!$E$20)*TAN(O25) -> 0.08210405979 | S25: 0.1714875734 | T25: =(I25-Value!$E$20)*Value!$E$33*(SIN(D25)+Value!$E$29/2*SIN(2*D25)/(1-Value!$E$29^2*SIN(D25)^2)^0.5) -> 0.3227746095 | U25: =T25*Value!$E$12 -> 0.003227746095 | V25: =U25*Value!$E$22 -> 0.1690043903 | W25: =($F25+$G25-1*Value!$E$36-1*Value!$E$37)/Value!$E$42 -> 0.8047361136 | X25: 0.9453468083 | Y25: =G25*10^9/Value!$D$39 -> 0.7102580664 | Z25: 0.9245797443
B26: 20 | C26: 270 | D26: 4.71238898 | E26: =Value!$E$12*((1-COS(D26))+1/Value!$E$29*(1-(1-(Value!$E$29*SIN(D26))^2)^0.5)) -> 0.01117895267 | F26: =Value!$E$31*(Value!$E$30-E26)+Value!$E$36 -> 2.074791086e-06 | G26: =Value!$E$32*E26+Value!$E$37 -> 3.154639985e-06 | H26: =F26/Value!$E$17+G26/Value!$E$18 -> 1.138307505e-08 | I26: =Value!$E$20*Value!$E$44/(Calc!F26/Value!$E$17+Calc!G26/Value!$E$18) -> 91428.31054 | J26: =Value!$E$33*Calc!E26 -> 5.479553623e-07 | K26: =Calc!J26/(Value!$E$33*Value!$E$30) -> 0.5589476334 | L26: 0.7250531715 | M26: 0.5479553623 | N26: 0.9142831054 | O26: =ASIN(Value!$E$29*SIN(Calc!D26)) -> -0.2347071138 | P26: -26.89545409 | Q26: =Value!$E$33*(I26-Value!$E$20)/(1-Value!$D$29^2*SIN(Calc!D26)^2)^0.5 -> -0.4975183456 | R26: =Value!$E$33*(Calc!I26-Value!$E$20)*TAN(O26) -> 0.1157019408 | S26: 0.1157019408 | T26: =(I26-Value!$E$20)*Value!$E$33*(SIN(D26)+Value!$E$29/2*SIN(2*D26)/(1-Value!$E$29^2*SIN(D26)^2)^0.5) -> 0.4838776345 | U26: =T26*Value!$E$12 -> 0.004838776345 | V26: =U26*Value!$E$22 -> 0.2533577369 | W26: =($F26+$G26-1*Value!$E$36-1*Value!$E$37)/Value!$E$42 -> 0.7830217394 | X26: 0.9236324341 | Y26: =G26*10^9/Value!$D$39 -> 0.5951400912 | Z26: 0.8989605903
B27: 21 | C27: 285 | D27: 4.974188368 | E27: =Value!$E$12*((1-COS(D27))+1/Value!$E$29*(1-(1-(Value!$E$29*SIN(D27))^2)^0.5)) -> 0.008510750734 | F27: =Value!$E$31*(Value!$E$30-E27)+Value!$E$36 -> 2.593137968e-06 | G27: =Value!$E$32*E27+Value!$E$37 -> 2.505506651e-06 | H27: =F27/Value!$E$17+G27/Value!$E$18 -> 1.171861187e-08 | I27: =Value!$E$20*Value!$E$44/(Calc!F27/Value!$E$17+Calc!G27/Value!$E$18) -> 88810.46086 | J27: =Value!$E$33*Calc!E27 -> 4.171689102e-07 | K27: =Calc!J27/(Value!$E$33*Value!$E$30) -> 0.4255375367 | L27: 0.7042928599 | M27: 0.4171689102 | N27: 0.8881046086 | O27: =ASIN(Value!$E$29*SIN(Calc!D27)) -> -0.2265673316 | P27: -25.96270375 | Q27: =Value!$E$33*(I27-Value!$E$20)/(1-Value!$D$29^2*SIN(Calc!D27)^2)^0.5 -> -0.6282520803 | R27: =Value!$E$33*(Calc!I27-Value!$E$20)*TAN(O27) -> 0.1411267232 | S27: -0.0221300336 | T27: =(I27-Value!$E$20)*Value!$E$33*(SIN(D27)+Value!$E$29/2*SIN(2*D27)/(1-Value!$E$29^2*SIN(D27)^2)^0.5) -> 0.6278621966 | U27: =T27*Value!$E$12 -> 0.006278621966 | V27: =U27*Value!$E$22 -> 0.3287478774 | W27: =($F27+$G27-1*Value!$E$36-1*Value!$E$37)/Value!$E$42 -> 0.7599219782 | X27: 0.9005326728 | Y27: =G27*10^9/Value!$D$39 -> 0.4726775365 | Z27: 0.8732208202
B28: 22 | C28: 300 | D28: 5.235987756 | E28: =Value!$E$12*((1-COS(D28))+1/Value!$E$29*(1-(1-(Value!$E$29*SIN(D28))^2)^0.5)) -> 0.005881120623 | F28: =Value!$E$31*(Value!$E$30-E28)+Value!$E$36 -> 3.10399157e-06 | G28: =Value!$E$32*E28+Value!$E$37 -> 1.86575726e-06 | H28: =F28/Value!$E$17+G28/Value!$E$18 -> 1.204929813e-08 | I28: =Value!$E$20*Value!$E$44/(Calc!F28/Value!$E$17+Calc!G28/Value!$E$18) -> 86373.10735 | J28: =Value!$E$33*Calc!E28 -> 2.882731216e-07 | K28: =Calc!J28/(Value!$E$33*Value!$E$30) -> 0.2940560311 | L28: 0.6849639356 | M28: 0.2882731216 | N28: 0.8637310735 | O28: =ASIN(Value!$E$29*SIN(Calc!D28)) -> -0.2027882817 | P28: -23.23782535 | Q28: =Value!$E$33*(I28-Value!$E$20)/(1-Value!$D$29^2*SIN(Calc!D28)^2)^0.5 -> -0.7469733736 | R28: =Value!$E$33*(Calc!I28-Value!$E$20)*TAN(O28) -> 0.1504413762 | S28: -0.2355474514 | T28: =(I28-Value!$E$20)*Value!$E$33*(SIN(D28)+Value!$E$29/2*SIN(2*D28)/(1-Value!$E$29^2*SIN(D28)^2)^0.5) -> 0.7088629057 | U28: =T28*Value!$E$12 -> 0.007088629057 | V28: =U28*Value!$E$22 -> 0.3711597495 | W28: =($F28+$G28-1*Value!$E$36-1*Value!$E$37)/Value!$E$42 -> 0.7371561497 | X28: 0.8777668443 | Y28: =G28*10^9/Value!$D$39 -> 0.351985314 | Z28: 0.8492557623
B29: 23 | C29: 315 | D29: 5.497787144 | E29: =Value!$E$12*((1-COS(D29))+1/Value!$E$29*(1-(1-(Value!$E$29*SIN(D29))^2)^0.5)) -> 0.003514312067 | F29: =Value!$E$31*(Value!$E$30-E29)+Value!$E$36 -> 3.563787293e-06 | G29: =Value!$E$32*E29+Value!$E$37 -> 1.289948394e-06 | H29: =F29/Value!$E$17+G29/Value!$E$18 -> 1.234693355e-08 | I29: =Value!$E$20*Value!$E$44/(Calc!F29/Value!$E$17+Calc!G29/Value!$E$18) -> 84290.99553 | J29: =Value!$E$33*Calc!E29 -> 1.722599781e-07 | K29: =Calc!J29/(Value!$E$33*Value!$E$30) -> 0.1757156034 | L29: 0.6684521815 | M29: 0.1722599781 | N29: 0.8429099553 | O29: =ASIN(Value!$E$29*SIN(Calc!D29)) -> -0.1651937409 | P29: -18.92980831 | Q29: =Value!$E$33*(I29-Value!$E$20)/(1-Value!$D$29^2*SIN(Calc!D29)^2)^0.5 -> -0.8452318101 | R29: =Value!$E$33*(Calc!I29-Value!$E$20)*TAN(O29) -> 0.1389928243 | S29: -0.4912500157 | T29: =(I29-Value!$E$20)*Value!$E$33*(SIN(D29)+Value!$E$29/2*SIN(2*D29)/(1-Value!$E$29^2*SIN(D29)^2)^0.5) -> 0.6878155529 | U29: =T29*Value!$E$12 -> 0.006878155529 | V29: =U29*Value!$E$22 -> 0.3601393814 | W29: =($F29+$G29-1*Value!$E$36-1*Value!$E$37)/Value!$E$42 -> 0.7166656794 | X29: 0.857276374 | Y29: =G29*10^9/Value!$D$39 -> 0.2433558214 | Z29: 0.8287835862
B30: 24 | C30: 330 | D30: 5.759586532 | E30: =Value!$E$12*((1-COS(D30))+1/Value!$E$29*(1-(1-(Value!$E$29*SIN(D30))^2)^0.5)) -> 0.001631432954 | F30: =Value!$E$31*(Value!$E$30-E30)+Value!$E$36 -> 3.929570896e-06 | G30: =Value!$E$32*E30+Value!$E$37 -> 8.318722712e-07 | H30: =F30/Value!$E$17+G30/Value!$E$18 -> 1.258371295e-08 | I30: =Value!$E$20*Value!$E$44/(Calc!F30/Value!$E$17+Calc!G30/Value!$E$18) -> 82704.94761 | J30: =Value!$E$33*Calc!E30 -> 7.996745866e-08 | K30: =Calc!J30/(Value!$E$33*Value!$E$30) -> 0.0815716477 | L30: 0.6558743589 | M30: 0.07996745866 | N30: 0.8270494761 | O30: =ASIN(Value!$E$29*SIN(Calc!D30)) -> -0.1165427084 | P30: -13.35481065 | Q30: =Value!$E$33*(I30-Value!$E$20)/(1-Value!$D$29^2*SIN(Calc!D30)^2)^0.5 -> -0.9176931899 | R30: =Value!$E$33*(Calc!I30-Value!$E$20)*TAN(O30) -> 0.1067085105 | S30: -0.7360002681 | T30: =(I30-Value!$E$20)*Value!$E$33*(SIN(D30)+Value!$E$29/2*SIN(2*D30)/(1-Value!$E$29^2*SIN(D30)^2)^0.5) -> 0.5481463274 | U30: =T30*Value!$E$12 -> 0.005481463274 | V30: =U30*Value!$E$22 -> 0.2870087459 | W30: =($F30+$G30-1*Value!$E$36-1*Value!$E$37)/Value!$E$42 -> 0.7003647925 | X30: 0.8409754871 | Y30: =G30*10^9/Value!$D$39 -> 0.1569372549 | Z30: 0.8131889136
B31: 25 | C31: 345 | D31: 6.021385919 | E31: =Value!$E$12*((1-COS(D31))+1/Value!$E$29*(1-(1-(Value!$E$29*SIN(D31))^2)^0.5)) -> 0.0004187046211 | F31: =Value!$E$31*(Value!$E$30-E31)+Value!$E$36 -> 4.16516549e-06 | G31: =Value!$E$32*E31+Value!$E$37 -> 5.368337374e-07 | H31: =F31/Value!$E$17+G31/Value!$E$18 -> 1.273621828e-08 | I31: =Value!$E$20*Value!$E$44/(Calc!F31/Value!$E$17+Calc!G31/Value!$E$18) -> 81714.62656 | J31: =Value!$E$33*Calc!E31 -> 2.052351854e-08 | K31: =Calc!J31/(Value!$E$33*Value!$E$30) -> 0.02093523105 | L31: 0.6480208241 | M31: 0.02052351854 | N31: 0.8171462656 | O31: =ASIN(Value!$E$29*SIN(Calc!D31)) -> -0.06022687893 | P31: -6.901491952 | Q31: =Value!$E$33*(I31-Value!$E$20)/(1-Value!$D$29^2*SIN(Calc!D31)^2)^0.5 -> -0.961754109 | R31: =Value!$E$33*(Calc!I31-Value!$E$20)*TAN(O31) -> 0.05788843724 | S31: -0.912316172 | T31: =(I31-Value!$E$20)*Value!$E$33*(SIN(D31)+Value!$E$29/2*SIN(2*D31)/(1-Value!$E$29^2*SIN(D31)^2)^0.5) -> 0.3043849017 | U31: =T31*Value!$E$12 -> 0.003043849017 | V31: =U31*Value!$E$22 -> 0.1593755619 | W31: =($F31+$G31-1*Value!$E$36-1*Value!$E$37)/Value!$E$42 -> 0.6898656865 | X31: 0.8304763811 | Y31: =G31*10^9/Value!$D$39 -> 0.1012766214 | Z31: 0.8034516715
A32: OT | B32: 26 | C32: 360 | D32: 6.283185307 | E32: =Value!$E$12*((1-COS(D32))+1/Value!$E$29*(1-(1-(Value!$E$29*SIN(D32))^2)^0.5)) -> 0 | F32: =Value!$E$31*(Value!$E$30-E32)+Value!$E$36 -> 4.246506498e-06 | G32: =Value!$E$32*E32+Value!$E$37 -> 4.349692109e-07 | H32: =F32/Value!$E$17+G32/Value!$E$18 -> 1.278887202e-08 | I32: =Value!$E$20*Value!$E$44/(Calc!F32/Value!$E$17+Calc!G32/Value!$E$18) -> 81378.19495 | J32: =Value!$E$33*Calc!E32 -> 0 | K32: =Calc!J32/(Value!$E$33*Value!$E$30) -> 0 | L32: 0.6453528233 | M32: =J32*10^6 -> 0 | N32: 0.8137819495 | O32: =ASIN(Value!$E$29*SIN(Calc!D32)) -> -5.698364907e-17 | P32: -6.529845185e-15 | Q32: =Value!$E$33*(I32-Value!$E$20)/(1-Value!$D$29^2*SIN(Calc!D32)^2)^0.5 -> -0.9765011292 | R32: =Value!$E$33*(Calc!I32-Value!$E$20)*TAN(O32) -> 5.564459766e-17 | S32: -0.9765011292 | T32: =(I32-Value!$E$20)*Value!$E$33*(SIN(D32)+Value!$E$29/2*SIN(2*D32)/(1-Value!$E$29^2*SIN(D32)^2)^0.5) -> 2.949163676e-16 | U32: =T32*Value!$E$12 -> 2.949163676e-18 | V32: =U32*Value!$E$22 -> 1.54417849e-16 | W32: =($F32+$G32-1*Value!$E$36-1*Value!$E$37)/Value!$E$42 -> 0.6862407822 | X32: 0.8268514768 | Y32: =G32*10^9/Value!$D$39 -> 0.08205932121 | Z32: 0.8001437381
B33: .-. | C33: 0 | D33: 0 | E33: =Value!$E$12*((1-COS(D33))+1/Value!$E$29*(1-(1-(Value!$E$29*SIN(D33))^2)^0.5)) -> 0 | F33: =Value!$E$31*(Value!$E$30-E33)+Value!$E$36 -> 4.246506498e-06 | G33: =Value!$E$32*E33+Value!$E$37 -> 4.349692109e-07 | H33: =F33/Value!$E$17+G33/Value!$E$18 -> 1.278887202e-08 | I33: =Value!$E$20*Value!$E$43/(Calc!F33/Value!$E$17+Calc!G33/Value!$E$18) -> 101300 | J33: =Value!$E$33*Calc!E33 -> 0 | K33: =Calc!J33/(Value!$E$33*Value!$E$30) -> 0 | L33: =I33/$I$19 -> 0.8033385484 | M33: 0 | N33: 1.013 | O33: =ASIN(Value!$E$29*SIN(Calc!D33)) -> 0 | P33: 0 | Q33: =Value!$E$33*(Calc!I33-Value!$E$20)/COS(O33) -> 0 | R33: =Value!$E$33*(Calc!I33-Value!$E$20)*TAN(O33) -> 0 | S33: 0 | T33: =Q33*SIN(D33+O33) -> 0 | U33: =T33*Value!$E$12 -> 0 | V33: =U33*Value!$E$22 -> 0 | W33: =($F33+$G33-1*Value!$E$36-1*Value!$E$37)/Value!$E$42 -> 0.6862407822 | X33: 0.8268514768 | Y33: =G33*10^9/Value!$D$39 -> 0.08205932121 | Z33: 0.9960230836
K34: Diagramm 1 | O34: Check: | Q34: =SUM(Q7:Q32)/25 -> 0.06534269362 | R34: =SUM(R7:R32)/24 -> 0.08223595183 | S34: =SUM(S7:S32)/24 -> -0.3281524552 | T34: =SUM(T7:T31)/24 -> 0.3441596991 | U34: =SUM(U7:U31)/24 -> 0.003441596991 | V34: =SUM(V7:V31)/24 -> 0.180201597 | W34: Diagramm 2 | X34: Diagramm 3 | Y34: Diagramm 4
K35: Vvar | L35: p'var | M35: Vvar | N35: pvar | O35: Kräfte / Momente / Leistung auf der Basis der Kinematik Kolben / Pleuel / Welle
B36: i | C36: =Base!D32 -> 0 | D36: =PI()/180*C36 -> 0 | E36: =Value!$E$12*((1-COS(D36))+Value!$E$29/4*(1-COS(2*D36))) -> 0 | F36: =Value!$E$31*(Value!$E$30-E36)+Value!$E$36 -> 4.246506498e-06 | G36: =Value!$E$32*E36+Value!$E$37 -> 4.349692109e-07 | H36: =F36/Value!$E$17+G36/Value!$E$18 -> 1.278887202e-08 | I36: =IF(C36>=0,IF(C36<=180,Value!$E$20*Value!$E$43/(Calc!F36/Value!$E$17+Calc!G36/Value!$E$18),Value!$E$20*Value!$E$44/(Calc!F36/Value!$E$17+Calc!G36/Value!$E$18))) -> 101300 | J36: =E36*Value!$E$33 -> 0 | K36: =Calc!J36/(Value!$E$33*Value!$E$30) -> 0 | L36: =I36/$I$19 -> 0.8033385484 | M36: =J36*10^6 -> 0 | N36: =I36/10^5 -> 1.013
K37: =K36 -> 0 | L37: 0 | M37: =M36 -> 0 | N37: =0 -> 0
K38: für Darstellung im p' V'-Diagramm 1
I39: [bar] | J39: [cm³] | K39: V/Vmax[ - ] | L39: pm/pmax[ - ]
I40: pm1 | J40: V | K40: V' | L40: p'm1 | M40: 0°- 180°
H41: =Value!E20/(Value!E17/Value!E18*Value!E32/Value!E31-1)*LN(Value!E17/Value!E18*Value!E32/Value!E31)/10^5 -> 1.15007331 | I41: =Value!E20/Value!E30*(Value!E31*Value!E30/Value!E17+Value!E36/Value!E17+Value!E37/Value!E18)/(Value!E31/Value!E17-Value!E32/Value!E18)*LN((Value!E31*Value!E30/Value!E17+Value!E36/Value!E17+Value!E37/Value!E18)/(Value!E32*Value!E30/Value!E18+Value!E36/Value!E17+Value!E37/Value!E18))/10^5 -> 1.12795759 | J41: =0.9*J7*10^6 -> 0 | K41: 0 | L41: =I41/I19*10^5 -> 0.8945032707
I42: =I41 -> 1.12795759 | J42: =1*J20*10^6 -> 0.9803339876 | K42: =1.02*J42/$J$20/10^6 -> 1.02 | L42: =I42/I19*10^5 -> 0.8945032707
I44: pm2 | J44: V | K44: V=V' | L44: p'm2 | M44: 180° - 360°
I45: =Value!E20/Value!E30*(Value!E32*Value!E30/Value!E18+Value!E36/Value!E17+Value!E37/Value!E18)/(Value!E31/Value!E17-Value!E32/Value!E18)*LN((Value!E31*Value!E30/Value!E17+Value!E36/Value!E17+Value!E37/Value!E18)/(Value!E32*Value!E30/Value!E18+Value!E36/Value!E17+Value!E37/ Value!E18))/10^5 -> 0.9061318132 | J45: =J41 -> 0 | K45: =K42 -> 1.02 | L45: =I45/I19*10^5 -> 0.718588959
I46: =I45 -> 0.9061318132 | J46: =J42 -> 0.9803339876 | K46: 0 | L46: =I46/I19*10^5 -> 0.718588959
I48: patm | J48: =J44 -> V | K48: V=V' | L48: p'atm
I49: =Value!E20/10^5 -> 1.013 | J49: =J45 -> 0 | K49: =K45 -> 1.02 | L49: =I49/I19*10^5 -> 0.8033385484
I50: =I49 -> 1.013 | J50: =J46 -> 0.9803339876 | K50: =K46*10^5 -> 0 | L50: =I50/I19*10^5 -> 0.8033385484
J51: Q=Q*+W2 | L51: W2 + W1 | M51: 0°® 180° | N51: 180°® 360° | O51: Q*=Q-W2
I52: pmax | J52: V | K52: p'max | L52: V'
I56: Zugeführte Energie | J56: Q [kg*m²/s²=Nm] | K56: Arbei/Umdrehung | L56: W [kg*m²/s²=Nm] | M56: W2 [kg*m²/s²=Nm] | N56: W1 [kg*m²/s²=Nm] | O56: Q* [kg*m²/s²=Nm]
I57: energy input | J57: =Value!E25*Value!E47*(Value!E18-Value!E17)+Value!E30*Value!E33*(Calc!I41-Calc!I49)*10^5 -> 0.4992165571 | K57: energy output | L57: =($I$41-$I$45)*Value!$E$33*Value!$E$30*10^5 -> 0.02174633486 | M57: =($I$41-$I$49)*Value!$E$33*Value!$E$30*10^5 -> 0.01126968329 | N57: =($I$49-$I$45)*Value!$E$33*Value!$E$30*10^5 -> 0.01047665157 | O57: =Value!E25*Value!E47*(Value!E18-Value!E17) -> 0.4879468738
L58: h=W/Q | O58: Q*=CVm2(T2-T1)
I59: Leistung | J59: P [kgm²/s³=W] | K59: Wirkungsgrad | L59: h [-]
I60: engine power | J60: =L57*Value!E21 -> 0.1812194572 | K60: efficiency [-] | L60: =L57/J57 -> 0.04356092472
I61: mittl. Moment | J61: Mt [kgm²/s²]
I62: mean moment | J62: =J60/Value!E22 -> 0.003461036687
I65: =(I41+I45)/2 -> 1.017044702

Sheet Opti
A2: Zusammenhang von Temperatur und Flächenverhälnis für einen maximalen Wirkungsgrad
A3: Interrelationship of temperatur and area ratio for a maximum of efficiency
A5: aktuelle Daten / actual values
A6: D1 | B6: =Value!E5 -> 0.0079 | C6: =B6*1000 -> 7.9
A7: D2 | B7: =Value!E6 -> 0.0176 | C7: =B7*1000 -> 17.6
A8: T1 | B8: =Value!E17 -> 353
A9: T2 | B9: =Value!E18 -> 573
A10: T2/T1 | B10: =B9/B8 -> 1.623229462 | C10: =B10 -> 1.623229462
A11: D1/opt | B11: =B7*(-0.002572*B10^4+0.043483*B10^3-0.27556*B10^2+0.82642*B10-0.582139)^0.5 -> 0.007898169055 | C11: =B11*1000 -> 7.898169055 | D11: Näherung
A12: Ermittlung der Näherungsfunktion für optimalen Durchmesser D1 sind T1, T2, D2 bekannt, D1 kann ermittelt werden
A13: A1/A2 | B13: T2/T1=f(A1/A2) | C13: y=D1/D2 | D13: y=[D1/D2]²
A14: 0.48 | B14: =1/A14*2.718181^(1/A14-1) -> 6.154985008 | C14: =(-(A14-1))^0.5 -> 0.7211102551 | D14: =-(A14-1) -> 0.52
A15: 0.49 | B15: 5.778404503 | C15: =(-(A15-1))^0.5 -> 0.7141428429 | D15: =-(A15-1) -> 0.51
A16: 0.5 | B16: 5.436362 | C16: 0.7071067812 | D16: 0.5
A17: 0.51 | B17: 5.124808857 | C17: 0.7 | D17: 0.49
A18: 0.52 | B18: 4.840263447 | C18: 0.692820323 | D18: 0.48
A19: 0.53 | B19: 4.579719864 | C19: 0.68556546 | D19: 0.47
A20: 0.54 | B20: 4.340573113 | C20: 0.6782329983 | D20: 0.46
A21: 0.55 | B21: 4.1205575 | C21: 0.6708203932 | D21: 0.45
A22: 0.56 | B22: 3.917695648 | C22: 0.6633249581 | D22: 0.44
A23: 0.57 | B23: 3.730256135 | C23: 0.6557438524 | D23: 0.43
A24: 0.58 | B24: 3.556718129 | C24: 0.6480740698 | D24: 0.42
A25: 0.59 | B25: 3.395741748 | C25: 0.6403124237 | D25: 0.41
A26: 0.6 | B26: 3.246143127 | C26: 0.632455532 | D26: 0.4
A27: 0.61 | B27: 3.106873356 | C27: 0.6244997998 | D27: 0.39
A28: 0.62 | B28: 2.977000625 | C28: 0.6164414003 | D28: 0.38
A29: 0.63 | B29: 2.855695045 | C29: 0.608276253 | D29: 0.37
A30: 0.64 | B30: 2.742215684 | C30: 0.6 | D30: 0.36
A31: 0.65 | B31: 2.635899477 | C31: 0.5916079783 | D31: 0.35
A32: 0.66 | B32: 2.536151692 | C32: 0.5830951895 | D32: 0.34
A33: 0.67 | B33: 2.44243773 | C33: 0.5744562647 | D33: 0.33
A34: 0.68 | B34: 2.354276026 | C34: 0.5656854249 | D34: 0.32
A35: 0.69 | B35: 2.271231916 | C35: 0.5567764363 | D35: 0.31
A36: 0.7 | B36: 2.192912295 | C36: 0.5477225575 | D36: 0.3
A37: 0.71 | B37: 2.118960975 | C37: 0.5385164807 | D37: 0.29
A38: 0.72 | B38: 2.04905463 | C38: 0.5291502622 | D38: 0.28
A39: 0.73 | B39: 1.982899245 | C39: 0.5196152423 | D39: 0.27
A40: 0.74 | B40: 1.920227006 | C40: 0.5099019514 | D40: 0.26
A41: 0.75 | B41: 1.860793559 | C41: 0.5 | D41: 0.25
A42: 0.76 | B42: 1.804375603 | C42: 0.4898979486 | D42: 0.24
A43: 0.77 | B43: 1.75076876 | C43: 0.4795831523 | D43: 0.23
A44: 0.78 | B44: 1.699785691 | C44: 0.469041576 | D44: 0.22
A45: 0.79 | B45: 1.651254427 | C45: 0.4582575695 | D45: 0.21
A46: 0.8 | B46: 1.605016887 | C46: 0.4472135955 | D46: 0.2
A47: 0.81 | B47: 1.560927556 | C47: 0.4358898944 | D47: 0.19
A48: 0.82 | B48: 1.518852311 | C48: 0.4242640687 | D48: 0.18 | F48: Zusammenhang von Temperatur- und Flächenverhälnis für einen maximalen Wirkungsgrad
A49: 0.83 | B49: 1.478667372 | C49: 0.4123105626 | D49: 0.17 | F49: Interrelationship of temperatur- and area ratios for a maximum of efficiency
A50: 0.84 | B50: 1.440258357 | C50: 0.4 | D50: 0.16
A51: 0.85 | B51: 1.403519446 | C51: 0.3872983346 | D51: 0.15
A52: 0.86 | B52: 1.36835262 | C52: 0.3741657387 | D52: 0.14
A53: 0.87 | B53: 1.334666986 | C53: 0.3605551275 | D53: 0.13
A54: 0.88 | B54: 1.302378163 | C54: 0.3464101615 | D54: 0.12
A55: 0.89 | B55: 1.271407732 | C55: 0.331662479 | D55: 0.11
A56: 0.9 | B56: 1.241682737 | C56: 0.316227766 | D56: 0.1 | F56: Näherungslösung / Solution in the form of an approximation
A57: 0.91 | B57: 1.213135233 | C57: 0.3 | D57: 0.09
A58: 0.92 | B58: 1.185701883 | C58: 0.2828427125 | D58: 0.08
A59: 0.93 | B59: 1.159323584 | C59: 0.2645751311 | D59: 0.07
A60: 0.94 | B60: 1.133945136 | C60: 0.2449489743 | D60: 0.06
A61: 0.95 | B61: 1.109514931 | C61: 0.2236067977 | D61: 0.05
A62: 0.96 | B62: 1.085984681 | C62: 0.2 | D62: 0.04
A63: 0.97 | B63: 1.063309161 | C63: 0.1732050808 | D63: 0.03
A64: 0.98 | B64: 1.041445981 | C64: 0.1414213562 | D64: 0.02
A65: 0.99 | B65: 1.020355373 | C65: 0.1 | D65: 0.01
A66: 1 | B66: 1 | C66: 0 | D66: 0 | F66: Näherungslösung / Solution in the form of an approximation

Sheet Optimierung (hidden)
A1: ← [D1/D2]² | B1: =Base!D4 -> 7.9 | C1: =Base!D5 -> 17.6
A3: ← (Tmax-Tmin)/Tmax | B3: =Base!D17 -> 300 | C3: =Base!$D$16 -> 80
A4: (Tmax-Tmin)/Tmax = 1,5813 [(D1/D2)²]0,8899
A5: (D1/D2)² = 0,5659 [(Tmax-Tmin)/Tmax]
A7: Ermittlung der optimalen maximalen Temperatur Tmax , gegeben Tmin, D1, D2 | E7: Input
A8: gegeben
A9: Umgebungstemperatur | B9: Tu [°C] | D9: =Base!$D$14 -> 20
A10: minimale Temperatur | B10: Tmin [°C] | D10: =C3 -> 80 | E10: Ü
A11: Durchmesser Kolben (kalt) | B11: D1 [mm] | D11: =B1 -> 7.9 | E11: Ü
A12: Durchmesser Verdränger (warm) | B12: D2 [mm] | D12: =C1 -> 17.6 | E12: Ü
A13: Durchmesserverhältnis | B13: [D1/D2]² [-] | D13: =(D11/D12)^2 -> 0.201478564
A14: optimale Temperaturverhältnis | B14: (Tmax-Tmin)/Tmax | C14: 1,5813 [(D1/D2)²]0,8899 [°K/°K] | D14: =1.5813*D13^0.8899 -> 0.3800559376
A15: optimale maximale Temperatur | B15: Tmax [°C] | D15: =(D10+273)/(1-D14)-273 -> 296.4062116
A18: Ermittlung des optimalen Durchmessers D2 (warm), gegeben D1, Tmin ,Tmax | E18: Input
A19: gegeben
A21: Kolbendurchmesser (kalt) | B21: D1 [mm] | D21: =B1 -> 7.9 | E21: Ü
A22: minimale Temperatur | B22: Tmin [°C] | D22: =C3 -> 80 | E22: Ü
A23: maximale Temperatur (Verdränger) | B23: Tmax [°C] | D23: =B3 -> 300 | E23: Ü
A24: optimale Temperaturverhältnis | B24: (Tmax-Tmin)/Tmax | C24: (Tmax-Tmin)/Tmax [°K/°K] | D24: =(D23-D22)/(D23+273) -> 0.3839441536
A25: optimales Durchmesserverhältnis | B25: [D1/D2]² [-] | C25: 0,5659 [(Tmax-Tmin)/Tmax] | D25: =0.5659*D24 -> 0.2172739965
A26: optimaler Verdrängerdurchmesser | B26: D2 [mm] | C26: D2 /{0,5659 [(Tmax-Tmin)/Tmax]}1/2 | D26: =D21/D25^0.5 -> 16.94818574
A28: Ermittlung des optimalen Durchmessers D1 (kalt), gegeben D2, Tmin ,Tmax | E28: Input
A29: gegeben
A31: Kolbendurchmesser (warm) | B31: D2 [mm] | D31: =Base!D5 -> 17.6 | E31: Ü
A32: minimale Temperatur | B32: Tmin [°C] | D32: =D22 -> 80 | E32: Ü
A33: maximale Temperatur (Verdränger) | B33: Tmax [°C] | D33: =D23 -> 300 | E33: Ü
A34: optimale Temperaturverhältnis | B34: (Tmax-Tmin)/Tmax | C34: (Tmax-Tmin)/Tmax [°K/°K] | D34: =(D33-D32)/(D33+273) -> 0.3839441536
A35: optimales Durchmesserverhältnis | B35: [D1/D2]² [-] | C35: 0,5659 [(Tmax-Tmin)/Tmax] | D35: =0.5659*D34 -> 0.2172739965
A36: optimaler Verdrängerdurchmesser | B36: D2 [mm] | C36: D2 /{0,5659 [(Tmax-Tmin)/Tmax]}1/2 | D36: =D31*D35^0.5 -> 8.203827958

Sheet Opti1 (hidden)
B1: (Tmax-Tmin)/Tmax | C1: .=1-Tmin/Tmax | D1: =1-D3 -> 0.5 | E1: 0.5500224989 | F1: 0.6 | G1: 0.6499824991 | H1: 0.7 | I1: 0.75
A2: 2r//D2=0,4 | C2: Tmax[°C] | D2: 327 | E2: 393.7 | F2: 477 | G2: 584.1 | H2: 727 | I2: 927
A3: D2=50 | C3: =27 -> 27 | D3: =($C$3+273)/(D2+273) -> 0.5 | E3: 0.4499775011 | F3: 0.4 | G3: 0.3500175009 | H3: 0.3 | I3: 0.25
D4: in °K/°K | E4: in °K/°K | F4: in °K/°K | G4: in °K/°K | H4: in °K/°K | I4: in °K/°K
A5: D2=50 | B5: D1/D2 [-] | C5: [D1/D2]² [-] | D5: h[-] | E5: h[-] | F5: h[-] | G5: h[-] | H5: h[-] | I5: h[-]
A6: 250 | B6: 0 | C6: =B6^2 -> 0 | D6: 0 | E6: 0 | F6: 0 | G6: 0 | H6: 0 | I6: 0
A7: 250 | B7: 0.2 | C7: =B7^2 -> 0.04 | D7: 0.0202 | E7: 0.0214 | F7: 0.0226 | G7: 0.0241 | H7: 0.0258 | I7: 0.0278
A8: 200 | B8: 0.25 | C8: 0.0625 | D8: 0.0305 | E8: 0.0323 | F8: 0.0344 | G8: 0.0367 | H8: 0.0395 | I8: 0.0427
A9: 166.7 | B9: 0.3 | C9: 0.09 | D9: 0.0418 | E9: 0.0447 | F9: 0.0478 | G9: 0.0513 | H9: 0.0553 | I9: 0.0601
A10: 142.9 | B10: 0.35 | C10: 0.1225 | D10: 0.0534 | E10: 0.0577 | F10: 0.0622 | G10: 0.0671 | H10: 0.0729 | I10: 0.0795
A11: 125 | B11: 0.4 | C11: 0.16 | D11: 0.0644 | E11: 0.0704 | F11: 0.0767 | G11: 0.0836 | H11: 0.0913 | I11: 0.1003
A12: 111.1 | B12: 0.45 | C12: 0.2025 | D12: 0.0733 | E12: 0.0817 | F12: 0.0903 | G12: 0.0995 | H12: 0.1097 | I12: 0.1215
A13: 100 | B13: 0.5 | C13: 0.25 | D13: 0.0786 | E13: 0.0901 | F13: 0.1016 | G13: 0.1137 | H13: 0.1269 | I13: 0.142
A14: 90.9 | B14: 0.55 | C14: 0.3025 | D14: 0.0781 | E14: 0.0935 | F14: 0.1087 | G14: 0.1245 | H14: 0.1414 | I14: 0.1604
A15: 83.3 | B15: 0.6 | C15: 0.36 | D15: 0.0682 | E15: 0.0894 | F15: 0.1094 | G15: 0.1296 | H15: 0.1512 | I15: 0.175
A16: 76.9 | B16: 0.65 | C16: 0.4225 | D16: 0.0471 | E16: 0.0742 | F16: 0.1002 | G16: 0.1262 | H16: 0.1533 | I16: 0.1829
A17: 71.4 | B17: 0.7 | C17: 0.49 | D17: 0.0072 | E17: 0.043 | F17: 0.0768 | G17: 0.1099 | H17: 0.144 | I17: 0.1806
A18: 66.7 | B18: 0.75 | C18: 0.5625 | D18: -0.0576 | E18: -0.0106 | F18: 0.033 | G18: 0.0752 | H18: 0.117 | I18: 0.163
A19: 62.5 | B19: 0.8 | C19: 0.64 | D19: -0.1631 | E19: -0.1007 | F19: -0.0436 | G19: 0.0107 | H19: 0.0647 | I19: 0.1207
A20: y | B20: y'
A21: ax³ | B21: 3ax² | D21: -1.199758 | E21: -1.096051 | F21: -1.006957 | G21: -0.929833 | H21: -0.85813 | I21: -0.805604
A22: bx² | B22: 2bx | D22: -0.394275 | E22: -0.354942 | F22: -0.32349 | G22: -0.298626 | H22: -0.283041 | I22: -0.258707
A23: cx | B23: c | D23: 0.49272 | E23: 0.522088 | F23: 0.554354 | G23: 0.591432 | H23: 0.635819 | I23: 0.686486
A24: d | D24: 0.49272 | E24: 0.522088 | F24: 0.554354 | G24: 0.591432 | H24: 0.635819 | I24: 0.686486 | J24: Optimierungrechnung
A25: [D1/D2]² = f (hmax) | C25: 0 | D25: =-2*D22/(3*D21)/2+((2*D22/(3*D21)/2)^2-D23/(3*D21))^0.5 -> 0.2763248326 | E25: 0.3048869169 | F25: 0.3344749532 | G25: 0.3656845072 | H25: 0.3990407623 | I25: 0.4365586736 | J25: =(L25/M25)^2 -> 0.25 | K25: ← [D1/D2]² | L25: 50 | M25: 100
A26: hmax[-] | B26: Test | C26: =1.5813*C23^0.8899 -> 0 | D26: =D21*D25^3+D22*D25^2+D23*D25 -> 0.08073217085 | E26: 0.09512053381 | F26: 0.1115483666 | G26: 0.1308737432 | H26: 0.1541219264 | I26: 0.1833591853 | J26: **********
A27: (Tmax-Tmin)/Tmax = 1-Tmin/Tmax | C27: =1.5813*C24^0.8899 -> 0 | D27: 0.5 | E27: 0.55 | F27: 0.6 | G27: 0.65 | H27: 0.7 | I27: 0.75 | J27: 0.4605 | K27: ← (Tmax-Tmin)/Tmax | L27: 800 | M27: 27
A28: (Tmax-Tmin)/Tmax= f ((D1/D2)²) | C28: =1.5813*C25^0.8899 -> 0 | D28: =1.5813*D25^0.8899 -> 0.5034239279 | E28: 0.5494768235 | F28: =1.5813*F25^0.8899 -> 0.5966854394 | G28: 0.6459855445 | H28: 0.6981673449 | I28: 0.7562897241 | J28: 0.4605121412 | K28: (Tmax-Tmin)/Tmax = 1,5813 [(D1/D2)²]0,8899
A29: [D1/D2]²= f ((Tmax-Tmin)/Tmax) | C29: =0.5659*C27 -> 0 | D29: =0.5659*D27 -> 0.28295 | E29: 0.311245 | F29: 0.33954 | G29: 0.367835 | H29: 0.39613 | I29: 0.424425 | J29: =0.5659*J27 -> 0.26059695 | K29: (D1/D2)² = 0,5659 [(Tmax-Tmin)/Tmax]

Sheet Temp+Spiel (hidden)
C1: http://upload.wikimedia.org/wikipedia/commons/9/98/Kerze_zonen.png
Q2: Durchmesser | R2: Wandstärke | S2: dim.-lose Wandst | T2: Temperatur
Q3: D [mm] | R3: s [mm] | S3: d=[D-d]/D [-] | T3: DT [-°C]
Q4: 20 | R4: 3.5 | S4: =R4/Q4 -> 0.175 | T4: 260
Q5: 17 | R5: 2 | S5: =R5/Q5 -> 0.1176470588 | T5: 297
Q6: 15 | R6: 1 | S6: =R6/Q6 -> 0.06666666667 | T6: 393
Q7: 14 | R7: 0.5 | S7: =R7/Q7 -> 0.03571428571 | T7: 345
Q8: 13 | R8: 0 | S8: =R8/Q8 -> 0 | T8: 250
A10: http://de.wikipedia.org/wiki/Kerze
A11: Zone 1 | B11: 600°C-800°C
A12: Zone 2 | B12: 1000°C
A13: Zone 3 | B13: 1200°C
A14: Zone 4 | B14: 1400°C
A15: gilt nur bei freier Flamme
A21: eigener Versuch | B21: mit Holzylinder mit Aussen-Ø/ Innen-Ø/ Innere Länge: da/di/li
A22: Wärmeerzeuger | B22: Tu [°C] | C22: Tmax [°C] | D22: DT [°C] | E22: da/di/li [mm/mm/mm] | F22: Datum | G22: Zeit [min] | H22: Wandstärke [mm] | I22: Bemerkung | K22: da | M22: di
A23: Kerze | B23: 21 | C23: 238 | D23: =C23-B23 -> 217 | E23: 17 / 13 / 28 | F23: 2010-04-05 | G23: ~ 30 | H23: 2 | I23: starke Rußbildung
A24: Spiritusbrenner | B24: 21 | C24: 318 | D24: 297 | E24: 17 / 13 / 28 | F24: 40287 | G24: 25 | H24: 2 | I24: keine Rußbildung
A25: Spiritusbrenner | B25: 22 | C25: 320 | D25: 298 | E25: 17 / 13 / 28 | F25: 2010-04-19 | G25: ~25 | H25: 2 | I25: keine Rußbildung | M25: li
A26: Spiritusbrenner | B26: 20 | C26: 413 | D26: 393 | E26: 15 / 13 / 28 | F26: 2010-05-11 | G26: ~20 | H26: 1 | I26: keine Rußbildung
A27: Spiritusbrenner | B27: 20 | C27: 420 | D27: 400 | E27: 15 / 13 / 28 | F27: 2010-05-12 | G27: ~25 | H27: 1 | I27: keine Rußbildung
A28: Spiritusbrenner | B28: 22 | C28: 367 | D28: 345 | E28: 14 / 13 / 28 | F28: 2010-05-14 | G28: ~26 | H28: 0.5 | I28: keine Rußbildung
A29: http://www.pahmeyer.homepage.t-online.de/motor22.html
B30: Kalte Seite | C30: Warme Seite
A31: Messung | B31: 80 | C31: 300
A33: Ermittlung desr Durchmesserspieles zwischen Zylinder und Kolben: smittel = D-d
A34: Durchmesserspiel: | C34: Basisdaten unveränderlich | D34: 1a sehr grob | E34: 1b geeignet | F34: 1c gut geeignet | G34: 1d noch geeignet | H34: input
A35: gegeben
A36: mittl. Spaltdurchmesser | B36: dm [mm] | C36: 17.5 | D36: =0.975*Base!$D$5 -> 17.16 | E36: =0.975*Base!$D$5 -> 17.16 | F36: =0.975*Base!$D$5 -> 17.16 | G36: =0.975*Base!$D$5/0.975 -> 17.6 | H36: ←
A37: mittl.Kolbenlänge | B37: leff [mm] | C37: 42 | D37: =Base!$D$9 -> 23 | E37: =Base!$D$9 -> 23 | F37: =Base!$D$9 -> 23 | G37: =Base!$D$9 -> 23 | H37: ←
A38: Kolbenhub | B38: h [mm] | C38: 13.6 | D38: =2*Base!$D$11 -> 20 | E38: =2*Base!$D$11 -> 20 | F38: =2*Base!$D$11 -> 20 | G38: =2*Base!$D$11 -> 20 | H38: ←
A39: Drehzahl | B39: n [min-1] | C39: 500 | D39: .-. | E39: .-. | F39: =Base!D20 -> 500 | G39: .-. | H39: ←
A40: gesucht: | H40: output
A41: mittl.Zyl./ Kolben-Spiel | B41: smittel [mm] | C41: 1 | D41: =(D37/D36*D43)^(1/3) -> 0.8235053727 | E41: =(E43*E36*E37*E38)^(1/3) -> 0.9243071004 | F41: =(F43*F36*F37*F38*F39)^(1/3) -> 0.9243071004 | G41: =0.02*G36 -> 0.352 | H41: ®
A43: unveränderlich | B43: .-. | D43: =C36/C37 -> 0.4166666667 | E43: =C41^3/(C36*C37*C38) -> 0.000100040016 | F43: =C41^3/(C36*C37*C38*C44) -> 2.00080032e-07 | G43: 0.02
A44: unveränderlich | B44: n0 [min-1] | C44: =C39 -> 500
C45: Stirlingmotor Frank Arbeiter | D45: .-. | E45: n [min-1] unbekannt | F45: n [min-1] bekannt | G45: 2% D2-Regel A. Fröbel
A48: Dichte | B48: Alu | C48: 2.7 | D48: kg/dm³
B49: Messing | C49: 8.5 | D49: kg/dm³
B50: Stahl | C50: 7.85 | D50: kg/dm³
A52: Wärmeleitfähhigkeit | B52: Alu | C52: 235 | D52: W/m/K
B53: Messing | C53: 120 | D53: W/m/K
B54: Stahl | C54: 48 | D54: W/m/K
A56: Wärmeausdehnung | B56: Alu | C56: 23,8*10-6 | D56: mm/mm/*°C
B57: Messing | C57: 18,4*10-7 | D57: mm/mm/*°C
B58: Stahl | C58: 11,5*10-8 | D58: mm/mm/*°C
A60: spez.Wärmekapazität | B60: Alu | C60: 897 | D60: J/kg/°C
B61: Messing | C61: 377 | D61: J/kg/°C
B62: Stahl | C62: 420 | D62: J/kg/°C
A64: Schmelzpkt. | B64: Alu | C64: 934 | D64: °C
B65: Messing | C65: 900 | D65: °C
B66: Stahl | C66: 1535 | D66: °C
A70: 2010-10-24
B71: Temperatur [ °C]
B72: UT | C72: OT
A73: Stange | B73: 56 -60 | C73: 85 - 85
A74: Führung | B74: 72 - 75 | C74: 78 - 80
A75: KH | B75: 90 - 100 | C75: 100 -90
A76: KM | B76: 100 - 110 | C76: 104 -107
A77: KV | B77: 110 - 125 | C77: 110 - 115
A78: WH | B78: 115 - 125 | C78: 110 - 117
A79: WM | B79: 155 - 155 | C79: 130 - 130
A80: WV (Flamme) | B80: 220 - 220 | C80: 180 - 215
B81: 1-flammiger Brenner

Sheet Kinematik
C2: Pleuellänge: | D2: =Base!D12/1000 -> 0.043 | E2: Verhältnis r/ l=l | F2: =D3/D2 -> 0.2325581395
C3: Kurbelradius: | D3: =Base!D11/1000 -> 0.01
C6: UT | D6: j=0°
C7: Winkel | D7: dimensionsloser Weg / Vergleich der exakten Lösung mit Näherungen
C8: j [°] | D8: Sexakt [m] | E8: Sapp/1 [m] | F8: Sapp/2 [m] | G8: Smoteurmanson | H8: 1+cosj
B9: UT | C9: 0 | D9: =(1+COS(PI()/180*$C9)-1/$F$2*(1-(1-$F$2^2*SIN(PI()/180*$C9)^2)^0.5)) -> 2 | E9: =(1+COS(PI()/180*$C9)-$F$2/4*(1-COS(2*PI()/180*$C9))) -> 2 | F9: =(1+COS(PI()/180*$C9)-$F$2/2*SIN(PI()/180*C9)^2) -> 2 | G9: =(1+COS(PI()/180*$C9)+$F$2/2*SIN(PI()/180*$C9)^2) -> 2 | H9: =1+COS(PI()/180*C9) -> 2
C10: 15 | D10: =(1+COS(PI()/180*$C10)-1/$F$2*(1-(1-$F$2^2*SIN(PI()/180*$C10)^2)^0.5)) -> 1.958129538 | E10: =(1+COS(PI()/180*$C10)-$F$2/4*(1-COS(2*PI()/180*$C10))) -> 1.958136606 | F10: =(1+COS(PI()/180*$C10)-$F$2/2*SIN(PI()/180*C10)^2) -> 1.958136606 | G10: =(1+COS(PI()/180*$C10)+$F$2/2*SIN(PI()/180*$C10)^2) -> 1.973715047 | H10: =1+COS(PI()/180*C10) -> 1.965925826
C11: 30 | D11: 1.836856705 | E11: 1.836955636 | F11: 1.836955636 | G11: 1.895095171 | H11: 1.866025404
C12: 45 | D12: 1.648568793 | E12: 1.648967246 | F12: 1.648967246 | G12: 1.765246316 | H12: 1.707106781
C13: 60 | D13: 1.411887938 | E13: 1.412790698 | F13: 1.412790698 | G13: 1.587209302 | H13: 1.5
C14: 75 | D14: 1.148924927 | E14: 1.150329196 | F14: 1.150329196 | G14: 1.367308894 | H14: 1.258819045
C15: 90 | D15: 0.8821047333 | E15: 0.8837209302 | F15: 0.8837209302 | G15: 1.11627907 | H15: 1
C16: 105 | D16: 0.6312868364 | E16: 0.6326911058 | F16: 0.6326911058 | G16: 0.849670804 | H16: 0.7411809549
C17: 120 | D17: 0.4118879377 | E17: 0.4127906977 | F17: 0.4127906977 | G17: 0.5872093023 | H17: 0.5
C18: 135 | D18: 0.2343552309 | E18: 0.2347536839 | F18: 0.2347536839 | G18: 0.3510327537 | H18: 0.2928932188
C19: 150 | D19: 0.104805897 | E19: 0.1049048288 | F19: 0.1049048288 | G19: 0.1630443637 | H19: 0.1339745962
C20: 165 | D20: 0.02627788531 | E20: 0.026284953 | F20: 0.026284953 | G20: 0.04186339442 | H20: 0.03407417371
C21: 180 | D21: 0 | E21: 0 | F21: -1.74533574e-33 | G21: 1.74533574e-33 | H21: 0
C22: 195 | D22: 0.02627788531 | E22: 0.026284953 | F22: 0.026284953 | G22: 0.04186339442 | H22: 0.03407417371
C23: 210 | D23: 0.104805897 | E23: 0.1049048288 | F23: 0.1049048288 | G23: 0.1630443637 | H23: 0.1339745962
C24: 225 | D24: 0.2343552309 | E24: 0.2347536839 | F24: 0.2347536839 | G24: 0.3510327537 | H24: 0.2928932188
C25: 240 | D25: 0.4118879377 | E25: 0.4127906977 | F25: 0.4127906977 | G25: 0.5872093023 | H25: 0.5
C26: 255 | D26: 0.6312868364 | E26: 0.6326911058 | F26: 0.6326911058 | G26: 0.849670804 | H26: 0.7411809549
C27: 270 | D27: 0.8821047333 | E27: 0.8837209302 | F27: 0.8837209302 | G27: 1.11627907 | H27: 1
C28: 285 | D28: 1.148924927 | E28: 1.150329196 | F28: 1.150329196 | G28: 1.367308894 | H28: 1.258819045
C29: 300 | D29: 1.411887938 | E29: 1.412790698 | F29: 1.412790698 | G29: 1.587209302 | H29: 1.5
C30: 315 | D30: 1.648568793 | E30: 1.648967246 | F30: 1.648967246 | G30: 1.765246316 | H30: 1.707106781
C31: 330 | D31: 1.836856705 | E31: 1.836955636 | F31: 1.836955636 | G31: 1.895095171 | H31: 1.866025404
C32: 345 | D32: 1.958129538 | E32: 1.958136606 | F32: 1.958136606 | G32: 1.973715047 | H32: 1.965925826
C33: 360 | D33: 2 | E33: 2 | F33: 2 | G33: 2 | H33: 2
C34: Mittelwert | D34: =SUM(D9:D32)/24 -> 0.9412572017 | E34: =SUM(E9:E32)/24 -> 0.9418604651 | F34: =SUM(F9:F32)/24 -> 0.9418604651 | G34: =SUM(G9:G32)/24 -> 1.058139535 | H34: =SUM(H9:H32)/24 -> 1
C35: mittl. Abweichung | D35: .-. | E35: =E34/$D34*100-100 -> 0.06409123762 | F35: =F34/$D34*100-100 -> 0.06409123762 | G35: =G34/$D34*100-100 -> 12.41768275 | H35: =H34/$D34*100-100 -> 6.240886993
C36: Kolbenweg in Abhängigkeit vom Kurbelwinkel
E37: x = s
C39: OT | D39: j=0°
C40: Winkel | D40: dimensionsloser Weg / Vergleich der exakten Lösung mit der Näherungen
C41: j [°] | D41: xexakt [m] | E41: xapp1 [-] | F41: xapp1 [-] | G41: Smoteurmanson | H41: xapp2 [-]
B42: OT | C42: 0 | D42: =(1-COS(PI()/180*$C42)+1/$F$2*(1-(1-$F$2^2*SIN(PI()/180*$C42)^2)^0.5)) -> 0 | E42: =(1-COS(PI()/180*$C42)+$F$2/4*(1-COS(2*PI()/180*$C42))) -> 0 | F42: =(1-COS(PI()/180*$C42)+$F$2/2*SIN(PI()/180*C42)^2) -> 0 | G42: =(1-COS(PI()/180*$C42)-$F$2/2*SIN(PI()/180*$C42)^2) -> 0 | H42: =1-COS(PI()/180*C42) -> 0
C43: 15 | D43: =(1-COS(PI()/180*$C43)+1/$F$2*(1-(1-$F$2^2*SIN(PI()/180*$C43)^2)^0.5)) -> 0.04187046211 | E43: =(1-COS(PI()/180*$C43)+$F$2/4*(1-COS(2*PI()/180*$C43))) -> 0.04186339442 | F43: =(1-COS(PI()/180*$C43)+$F$2/2*SIN(PI()/180*C43)^2) -> 0.04186339442 | G43: =(1-COS(PI()/180*$C43)-$F$2/2*SIN(PI()/180*$C43)^2) -> 0.026284953 | H43: =1-COS(PI()/180*C43) -> 0.03407417371
C44: 30 | D44: 0.1631432954 | E44: 0.1630443637 | F44: 0.1630443637 | G44: 0.1049048288 | H44: 0.1339745962
C45: 45 | D45: 0.3514312067 | E45: 0.3510327537 | F45: =(1-COS(PI()/180*$C45)+$F$2/2*SIN(PI()/180*C45)^2) -> 0.3510327537 | G45: 0.2347536839 | H45: 0.2928932188
C46: 60 | D46: 0.5881120623 | E46: 0.5872093023 | F46: 0.5872093023 | G46: 0.4127906977 | H46: 0.5
C47: 75 | D47: 0.8510750734 | E47: 0.849670804 | F47: 0.849670804 | G47: 0.6326911058 | H47: 0.7411809549
C48: 90 | D48: 1.117895267 | E48: 1.11627907 | F48: 1.11627907 | G48: 0.8837209302 | H48: 1
C49: 105 | D49: 1.368713164 | E49: 1.367308894 | F49: 1.367308894 | G49: 1.150329196 | H49: 1.258819045
C50: 120 | D50: 1.588112062 | E50: 1.587209302 | F50: 1.587209302 | G50: 1.412790698 | H50: 1.5
C51: 135 | D51: 1.765644769 | E51: 1.765246316 | F51: 1.765246316 | G51: 1.648967246 | H51: 1.707106781
C52: 150 | D52: 1.895194103 | E52: 1.895095171 | F52: 1.895095171 | G52: 1.836955636 | H52: 1.866025404
C53: 165 | D53: 1.973722115 | E53: 1.973715047 | F53: 1.973715047 | G53: 1.958136606 | H53: 1.965925826
B54: UT | C54: 180 | D54: 2 | E54: 2 | F54: 2 | G54: 2 | H54: 2
C55: 195 | D55: 1.973722115 | E55: 1.973715047 | F55: 1.973715047 | G55: 1.958136606 | H55: 1.965925826
C56: 210 | D56: 1.895194103 | E56: 1.895095171 | F56: 1.895095171 | G56: 1.836955636 | H56: 1.866025404
C57: 225 | D57: 1.765644769 | E57: 1.765246316 | F57: 1.765246316 | G57: 1.648967246 | H57: 1.707106781
C58: 240 | D58: 1.588112062 | E58: 1.587209302 | F58: 1.587209302 | G58: 1.412790698 | H58: 1.5
C59: 255 | D59: 1.368713164 | E59: 1.367308894 | F59: 1.367308894 | G59: 1.150329196 | H59: 1.258819045
C60: 270 | D60: 1.117895267 | E60: 1.11627907 | F60: 1.11627907 | G60: 0.8837209302 | H60: 1
C61: 285 | D61: 0.8510750734 | E61: 0.849670804 | F61: 0.849670804 | G61: 0.6326911058 | H61: 0.7411809549
C62: 300 | D62: 0.5881120623 | E62: 0.5872093023 | F62: 0.5872093023 | G62: 0.4127906977 | H62: 0.5
C63: 315 | D63: 0.3514312067 | E63: 0.3510327537 | F63: 0.3510327537 | G63: 0.2347536839 | H63: 0.2928932188
C64: 330 | D64: 0.1631432954 | E64: 0.1630443637 | F64: 0.1630443637 | G64: 0.1049048288 | H64: 0.1339745962
C65: 345 | D65: 0.04187046211 | E65: 0.04186339442 | F65: 0.04186339442 | G65: 0.026284953 | H65: 0.03407417371
B66: OT | C66: 360 | D66: 0 | E66: 0 | F66: 6.981342961e-33 | G66: -6.981342961e-33 | H66: =1-COS(PI()/180*C66) -> 0
C67: Mittelwert | D67: =SUM(D42:D65)/24 -> 1.058742798 | E67: =SUM(E42:E65)/24 -> 1.058139535 | F67: =SUM(F42:F65)/24 -> 1.058139535 | G67: =SUM(G42:G65)/24 -> 0.9418604651 | H67: =SUM(H42:H65)/24 -> 1
C68: mittl. Abweichung | D68: .-. | E68: =E67/$D67*100-100 -> -0.05697922014 | F68: =F67/$D67*100-100 -> -0.05697922014 | G68: =G67/$D67*100-100 -> -11.03972876 | H68: =H67/$D67*100-100 -> -5.548353988
